Workbook

Sheet EXO-1
B1: Exercice 1: Calcul des grands indices
B3: PARAMETRES
B4: Taux sans Risque (% an) | E4: 0.04
B5: Market Portfolio (% an)
B6: Expected Return, Market Porfolio | E6: 0.104
B7: Volatility, Market Porfolio | E7: 0.0908
B8: Portfolio (% an)
B9: Expected Return | E9: 0.14
B10: Volatility,Portfolio | E10: 0.3
B11: Beta | E11: 1.2
B12: TE: Volat (Portfolio versus Market Return) | E12: 0.03
B14: CALCUL
B15: PERFORMANCE MEASURE
B16: Excess Return, Market (ERP) | E16: =E6-E4 -> 0.064 | F16: =_xlfn.FORMULATEXT(E16) -> =E6-E4
B17: Excess Return Portfolio | E17: =E9-E4 -> 0.1 | F17: =_xlfn.FORMULATEXT(E17) -> =E9-E4
B18: Treynor | E18: =E17/E11 -> 0.08333333333 | F18: =E17/E11
B19: Sharpe | E19: =E17/E10 -> 0.3333333333 | F19: =E17/E10
B20: Jensen Alpha | E20: =E17-(E16*E11) -> 0.0232 | F20: =E17-(E16*E11)
B21: Information Ratio (IR) | E21: =E20/E12 -> 0.7733333333 | F21: =E20/E12
B24: PERFORMANCE MEASURE
B25: Excess Return, Market (ERP)
B26: Excess Return Portfolio
B27: Treynor
B28: Sharpe
B29: Jensen Alpha
B30: Information Ratio (IR)

Sheet EXO-2
B2: CALCUL DU BETA TITRE VS MARKET
B3: Données | C3: Y | D3: Y | E3: X | F3: X
C4: Google | D4: Yahoo! Inc. | E4: Nasdaq | F4: Nasdaq
C5: Close | D5: Performance | E5: Close | F5: Performance | H5: 3 Methodes pour Calculer Béta
B6: 2021-11-22 | C6: 2941.57 | D6: =C6/C7-1 -> -0.01916606926 | E6: 15854.76 | F6: =E6/E7-1 -> -0.01262218635
B7: 2021-11-19 | C7: 2999.05 | D7: =C7/C8-1 -> -0.005019607323 | E7: 16057.44 | F7: =E7/E8-1 -> 0.003984691482
B8: 2021-11-18 | C8: 3014.18 | D8: 0.01104909367 | E8: 15993.71 | F8: 0.004530960201
B9: 2021-11-17 | C9: 2981.24 | D9: -9.391183021e-05 | E9: 15921.57 | F9: -0.003273473037
B10: 2021-11-16 | C10: 2981.52 | D10: -0.002088521166 | E10: 15973.86 | F10: 0.007569770119
B11: 2021-11-15 | C11: 2987.76 | D11: -0.001720733333 | E11: 15853.85 | F11: -0.0004482704704
B12: 2021-11-12 | C12: 2992.91 | D12: 0.01974473247 | E12: 15860.96 | F12: 0.009976898018 | H12: Covar(Y,N) | I12: =COVAR(D6:D34,F6:F34) -> 5.081375998e-05 | J12: =COVAR(TABX,TABY) -> 5.081375998e-05 | K12: =_xlfn.FORMULATEXT(J12) -> =COVARIANCE(TABX;TABY)
B13: 2021-11-11 | C13: 2934.96 | D13: 0.0008320488863 | E13: 15704.28 | F13: 0.005221245226 | H13: Variance N | I13: =VARP(F6:F34) -> 5.267476306e-05 | J13: =VARP(TABX) -> 5.267476306e-05 | K13: =_xlfn.FORMULATEXT(J13) -> =VAR.P(TABX)
B14: 2021-11-10 | C14: 2932.52 | D14: -0.01757136588 | E14: 15622.71 | F14: -0.01660714038 | H14: Ecartype | I14: =STDEVP(F6:F34) -> 0.00725773815 | J14: =SQRT(J13) -> 0.00725773815 | K14: =RACINE(J13)
B15: 2021-11-09 | C15: 2984.97 | D15: -0.0006896482459 | E15: 15886.54 | F15: -0.005995359884 | G15: M1 | H15: Beta | I15: =I12/I13 -> 0.9646699298 | J15: =J12/J13 -> 0.9646699298 | K15: =J12/J13
B16: 2021-11-08 | C16: 2987.03 | D16: 0.0007404131572 | E16: 15982.36 | F16: 0.0006743223436
B17: 2021-11-05 | C17: 2984.82 | D17: 0.003752950909 | E17: 15971.59 | F17: 0.001962320683 | G17: M2 | H17: Pente | I17: =SLOPE(D6:D34,F6:F34) -> 0.9646699298 | J17: =SLOPE(TABY,TABX) -> 0.9646699298 | K17: =PENTE(TABY;TABX)
B18: 2021-11-04 | C18: 2973.66 | D18: 0.01289597384 | E18: 15940.31 | F18: 0.008141501355
B19: 2021-11-03 | C19: 2935.8 | D19: 0.006355278583 | E19: 15811.58 | F19: 0.01035042429 | G19: M3 | H19: Droite reg | I19: =LINEST(D6:D34,F6:F34,TRUE) -> 0.9646699298 | J19: =LINEST(TABY,TABX,TRUE) -> 0.9646699298 | K19: =DROITEREG(TABY;TABX;VRAI)
B20: 2021-11-02 | C20: 2917.26 | D20: 0.01452974808 | E20: 15649.6 | F20: 0.003441925837
B21: 2021-11-01 | C21: 2875.48 | D21: -0.03032632924 | E21: 15595.92 | F21: 0.006292911715 | H21: Donnée utilisateur d'analyse
B22: 2021-10-29 | C22: 2965.41 | D22: 0.01465485975 | E22: 15498.39 | F22: 0.003254117653
B23: 2021-10-28 | C23: 2922.58 | D23: -0.002038551502 | E23: 15448.12 | F23: 0.01393293707 | H23: alpha | J23: =INTERCEPT(TABY,TABX) -> -0.0004403623701 | K23: =_xlfn.FORMULATEXT(J23) -> =ORDONNEE.ORIGINE(TABY;TABX)
B24: 2021-10-27 | C24: 2928.55 | D24: 0.04836688814 | E24: 15235.84 | F24: 8.532585616e-06
B25: 2021-10-26 | C25: 2793.44 | D25: 0.006478205415 | E25: 15235.71 | F25: 0.0005910666191 | J25: =LINEST(TABY,TABX,TRUE) -> 0.9646699298 | K25: -0.0004403623701
B26: 2021-10-25 | C26: 2775.46 | D26: 0.001067628494 | E26: 15226.71 | F26: 0.009046268439 | J26: 0.9646699298 | K26: -0.0004403623701
B27: 2021-10-22 | C27: 2772.5 | D27: -0.02910411436 | E27: 15090.2 | F27: -0.00824805957 | J27: 0.9646699298 | K27: -0.0004403623701
B28: 2021-10-21 | C28: 2855.61 | D28: 0.002566443142 | E28: 15215.7 | F28: 0.006217563128 | J28: 0.9646699298 | K28: -0.0004403623701
B29: 2021-10-20 | C29: 2848.3 | D29: -0.009782926117 | E29: 15121.68 | F29: -0.0004897849111
B30: 2021-10-19 | C30: 2876.44 | D30: 0.006026140088 | E30: 15129.09 | F30: 0.00714161609
B31: 2021-10-18 | C31: 2859.21 | D31: 0.009073583907 | E31: 15021.81 | F31: 0.008355182872
B32: 2021-10-15 | C32: 2833.5 | D32: 0.001859813877 | E32: 14897.34 | F32: 0.004986025502
B33: 2021-10-14 | C33: 2828.24 | D33: 0.02546773024 | E33: 14823.43 | F33: 0.01727945516
B34: 2021-10-13 | C34: 2758 | D34: 0.008682422301 | E34: 14571.64 | F34: 0.007308211299
B35: 2021-10-12 | C35: 2734.26 | E35: 14465.92
F38: Liste des calculs
B39: Données | C39: Y | D39: X | F39: Les performances quotidiennes ( méthode au choix) pour chaque série
C40: Yahoo! Inc. | D40: Nasdaq
C41: Close | D41: Close | F41: La variance du Nasdaq
B42: 2021-11-22 | C42: 2941.57 | D42: 15854.76
B43: 2021-11-19 | C43: 2999.05 | D43: 16057.44 | F43: L'écart type du Nasdaq
B44: 2021-11-18 | C44: 3014.18 | D44: 15993.71
B45: 2021-11-17 | C45: 2981.24 | D45: 15921.57 | F45: La covariance de Yahoo avec le Nasdaq
B46: 2021-11-16 | C46: 2981.52 | D46: 15973.86
B47: 2021-11-15 | C47: 2987.76 | D47: 15853.85 | F47: Le Beta de Yahoo avec la formule directe
B48: 2021-11-12 | C48: 2992.91 | D48: 15860.96
B49: 2021-11-11 | C49: 2934.96 | D49: 15704.28 | F49: Un graphique qui explicite la fonction de regression
B50: 2021-11-10 | C50: 2932.52 | D50: 15622.71
B51: 2021-11-09 | C51: 2984.97 | D51: 15886.54 | F51: RAPPORT DÉTAILLÉ
B52: 2021-11-08 | C52: 2987.03 | D52: 15982.36
B53: 2021-11-05 | C53: 2984.82 | D53: 15971.59 | F53: Statistiques de la régression
B54: 2021-11-04 | C54: 2973.66 | D54: 15940.31 | F54: Coefficient de détermination multiple | G54: 0.4582770675
B55: 2021-11-03 | C55: 2935.8 | D55: 15811.58 | F55: Coefficient de détermination R^2 | G55: 0.2100178706
B56: 2021-11-02 | C56: 2917.26 | D56: 15649.6 | F56: Coefficient de détermination R^2 | G56: 0.1807592732
B57: 2021-11-01 | C57: 2875.48 | D57: 15595.92 | F57: Erreur-type | G57: 0.01407270752
B58: 2021-10-29 | C58: 2965.41 | D58: 15498.39 | F58: Observations | G58: 29
B59: 2021-10-28 | C59: 2922.58 | D59: 15448.12
B60: 2021-10-27 | C60: 2928.55 | D60: 15235.84 | F60: ANALYSE DE VARIANCE
B61: 2021-10-26 | C61: 2793.44 | D61: 15235.71 | G61: Degré de liberté | H61: Somme des carrés | I61: Moyenne des carrés | J61: F | K61: Valeur critique de F
B62: 2021-10-25 | C62: 2775.46 | D62: 15226.71 | F62: Régression | G62: 1 | H62: 0.001421536682 | I62: 0.001421536682 | J62: 7.177988331 | K62: 0.01241467343
B63: 2021-10-22 | C63: 2772.5 | D63: 15090.2 | F63: Résidus | G63: 27 | H63: 0.005347109614 | I63: 0.0001980410968
B64: 2021-10-21 | C64: 2855.61 | D64: 15215.7 | F64: Total | G64: 28 | H64: 0.006768646296
B65: 2021-10-20 | C65: 2848.3 | D65: 15121.68
B66: 2021-10-19 | C66: 2876.44 | D66: 15129.09 | G66: Coefficients | H66: Erreur-type | I66: Statistique t | J66: Probabilité | K66: Limite inférieure pour seuil de confiance = 95% | L66: Limite supérieure pour seuil de confiance = 95% | M66: Limite inférieure pour seuil de confiance = 95,0% | N66: Limite supérieure pour seuil de confiance = 95,0%
B67: 2021-10-18 | C67: 2859.21 | D67: 15021.81 | F67: Constante | G67: -0.0004403623701 | H67: 0.002854887528 | I67: -0.154248588 | J67: 0.8785609434 | K67: -0.006298107721 | L67: 0.005417382981 | M67: -0.006298107721 | N67: 0.005417382981
B68: 2021-10-15 | C68: 2833.5 | D68: 14897.34 | F68: Variable X 1 | G68: 0.9646699298 | H68: 0.3600620644 | I68: 2.679176801 | J68: 0.01241467343 | K68: 0.2258835983 | L68: 1.703456261 | M68: 0.2258835983 | N68: 1.703456261
B69: 2021-10-14 | C69: 2828.24 | D69: 14823.43
B70: 2021-10-13 | C70: 2758 | D70: 14571.64
B71: 2021-10-12 | C71: 2734.26 | D71: 14465.92

Sheet REG
A1: RAPPORT DÉTAILLÉ
A3: Statistiques de la régression
A4: Coefficient de détermination multiple | B4: 0.4582770675
A5: Coefficient de détermination R^2 | B5: 0.2100178706
A6: Coefficient de détermination R^2 | B6: 0.1807592732
A7: Erreur-type | B7: 0.01407270752
A8: Observations | B8: 29
A10: ANALYSE DE VARIANCE
B11: Degré de liberté | C11: Somme des carrés | D11: Moyenne des carrés | E11: F | F11: Valeur critique de F
A12: Régression | B12: 1 | C12: 0.001421536682 | D12: 0.001421536682 | E12: 7.177988331 | F12: 0.01241467343
A13: Résidus | B13: 27 | C13: 0.005347109614 | D13: 0.0001980410968
A14: Total | B14: 28 | C14: 0.006768646296
B16: Coefficients | C16: Erreur-type | D16: Statistique t | E16: Probabilité | F16: Limite inférieure pour seuil de confiance = 95% | G16: Limite supérieure pour seuil de confiance = 95% | H16: Limite inférieure pour seuil de confiance = 95,0% | I16: Limite supérieure pour seuil de confiance = 95,0%
A17: Constante | B17: -0.0004403623701 | C17: 0.002854887528 | D17: -0.154248588 | E17: 0.8785609434 | F17: -0.006298107721 | G17: 0.005417382981 | H17: -0.006298107721 | I17: 0.005417382981
A18: Variable X 1 | B18: 0.9646699298 | C18: 0.3600620644 | D18: 2.679176801 | E18: 0.01241467343 | F18: 0.2258835983 | G18: 1.703456261 | H18: 0.2258835983 | I18: 1.703456261

Sheet EXO-3
B2: CALCUL ALPHA GOOGLE | F2: Methode Arith | J2: Methode Ln
B3: Données | E3: Y | F3: Y | H3: Y | I3: X | J3: X | K3: X
C4: Risk free | D4: Day Risk free | E4: Yahoo! Inc. | F4: Yahoo! Inc. | G4: Yahoo! Inc. | H4: Yahoo! Inc. | I4: Nasdaq | J4: Nasdaq | K4: Nasdaq
E5: Close | F5: Performance | G5: (1 +ry ) | H5: Excess Ret | I5: Close | J5: Performance | K5: Excess Ret | L5: Diff perf | N5: CALCUL
A6: =B6-B7 -> 3 | B6: 2021-11-22 | C6: 0.0034 | D6: =C6/360*A6 -> 2.833333333e-05 | E6: 2941.57 | F6: =E6/E7-1 -> -0.01916606926 | G6: =(1+F6) -> 0.9808339307 | H6: =F6-D6 -> -0.01919440259 | I6: 15854.76 | J6: =LN(I6/I7) -> -0.01270252288 | K6: =J6-D6 -> -0.01273085621 | L6: =F6-J6 -> -0.006463546379 | N6: Nb. d'observation | O6: =COUNTA(H6:H34) -> 29
A7: 1 | B7: 2021-11-19 | C7: 0.0035 | D7: =C7/360*A7 -> 9.722222222e-06 | E7: 2999.05 | F7: =E7/E8-1 -> -0.005019607323 | G7: =(1+F7) -> 0.9949803927 | H7: =F7-D7 -> -0.005029329545 | I7: 16057.44 | J7: =LN(I7/I8) -> 0.003976773625 | K7: =J7-D7 -> 0.003967051403 | L7: =F7-J7 -> -0.008996380948 | N7: Risk free rate jour | O7: =D37 -> 1.161877395e-05
A8: 1 | B8: 2021-11-18 | C8: 0.0033 | D8: 9.166666667e-06 | E8: 3014.18 | F8: 0.01104909367 | G8: 1.011049094 | H8: 0.011039927 | I8: 15993.71 | J8: =LN(I8/I9) -> 0.004520726302 | K8: 0.004511559635 | L8: =F8-J8 -> 0.006528367364 | N8: Excess Ret jour Yahoo | O8: =H37 -> 0.002627766629
A9: 1 | B9: 2021-11-17 | C9: 0.0033 | D9: 9.166666667e-06 | E9: 2981.24 | F9: -9.391183021e-05 | G9: 0.9999060882 | H9: -0.0001030784969 | I9: 15921.57 | J9: -0.003278842571 | K9: =J9-D9 -> -0.003288009237 | L9: =F9-J9 -> 0.00318493074 | N9: Excess Ret jour Nasdaq | O9: =K37 -> 0.003149561657
A10: 1 | B10: 2021-11-16 | C10: 0.0033 | D10: 9.166666667e-06 | E10: 2981.52 | F10: -0.002088521166 | G10: 0.9979114788 | H10: =F10-D10 -> -0.002097687833 | I10: 15973.86 | J10: 0.007541263179 | K10: 0.007532096513 | L10: -0.009629784346 | N10: Active Return= | O10: =H37-K37 -> -0.0005217950279
A11: 3 | B11: 2021-11-15 | C11: 0.003 | D11: =C11/360*A11 -> 2.5e-05 | E11: 2987.76 | F11: -0.001720733333 | G11: 0.9982792667 | H11: -0.001745733333 | I11: 15853.85 | J11: -0.0004483709736 | K11: -0.0004733709736 | L11: -0.001272362359 | N11: ERT yahoo-ERT Nasdaq
A12: 1 | B12: 2021-11-12 | C12: 0.003 | D12: 8.333333333e-06 | E12: 2992.91 | F12: 0.01974473247 | G12: 1.019744732 | H12: 0.01973639913 | I12: 15860.96 | J12: 0.009927457342 | K12: 0.009919124008 | L12: 0.009817275125 | N12: Slope (Beta) | O12: =SLOPE(H6:H34,K6:K34) -> 0.9666356429
A13: 1 | B13: 2021-11-11 | C13: 0.0031 | D13: 8.611111111e-06 | E13: 2934.96 | F13: 0.0008320488863 | G13: 1.000832049 | H13: 0.0008234377752 | I13: 15704.28 | J13: 0.005207661786 | K13: 0.005199050675 | L13: -0.0043756129 | N13: Residual Return | O13: =H37-O12*K37 -> -0.000416711928
A14: 1 | B14: 2021-11-10 | C14: 0.0032 | D14: 8.888888889e-06 | E14: 2932.52 | F14: -0.01757136588 | G14: 0.9824286341 | H14: -0.01758025477 | I14: 15622.71 | J14: -0.01674658495 | K14: -0.01675547383 | L14: -0.0008247809303 | N14: Alpha Ordonnée Orig | O14: =INTERCEPT(H6:H34,K6:K34) -> -0.000416711928
A15: 1 | B15: 2021-11-09 | C15: 0.0032 | D15: 8.888888889e-06 | E15: 2984.97 | F15: -0.0006896482459 | G15: 0.9993103518 | H15: -0.0006985371348 | I15: 15886.54 | J15: -0.006013404212 | K15: -0.006022293101 | L15: 0.005323755966 | N15: Résidu | O15: =O10-O13 -> -0.0001050830999
A16: 3 | B16: 2021-11-08 | C16: 0.0031 | D16: 2.583333333e-05 | E16: 2987.03 | F16: 0.0007404131572 | G16: 1.000740413 | H16: 0.0007145798239 | I16: 15982.36 | J16: 0.0006740950905 | K16: 0.0006482617571 | L16: 6.631806679e-05 | N16: représente l'écart Active Return - Alpha
A17: 1 | B17: 2021-11-05 | C17: 0.0031 | D17: 8.611111111e-06 | E17: 2984.82 | F17: 0.003752950909 | G17: 1.003752951 | H17: 0.003744339798 | I17: 15971.59 | J17: 0.001960397846 | K17: 0.001951786735 | L17: 0.001792553063 | N17: Tracking Error | O17: =L40 -> 0.0744041174
A18: 1 | B18: 2021-11-04 | C18: 0.0031 | D18: 8.611111111e-06 | E18: 2973.66 | F18: 0.01289597384 | G18: 1.012895974 | H18: 0.01288736273 | I18: 15940.31 | J18: 0.008108538126 | K18: 0.008099927015 | L18: 0.004787435714 | N18: RI | O18: =H43 -> 0.07697224693
A19: 1 | B19: 2021-11-03 | C19: 0.0031 | D19: 8.611111111e-06 | E19: 2935.8 | F19: 0.006355278583 | G19: 1.006355279 | H19: 0.006346667472 | I19: 15811.58 | J19: 0.01029722542 | K19: 0.01028861431 | L19: -0.00394194684
A20: 1 | B20: 2021-11-02 | C20: 0.0031 | D20: 8.611111111e-06 | E20: 2917.26 | F20: 0.01452974808 | G20: 1.014529748 | H20: 0.01452113697 | I20: 15649.6 | J20: 0.003436015967 | K20: 0.003427404856 | L20: 0.01109373211
A21: 3 | B21: 2021-11-01 | C21: 0.0028 | D21: 2.333333333e-05 | E21: 2875.48 | F21: -0.03032632924 | G21: 0.9696736708 | H21: -0.03034966258 | I21: 15595.92 | J21: 0.006273194024 | K21: 0.006249860691 | L21: -0.03659952327
A22: 1 | B22: 2021-10-29 | C22: 0.0029 | D22: 8.055555556e-06 | E22: 2965.41 | F22: 0.01465485975 | G22: 1.01465486 | H22: 0.01464680419 | I22: 15498.39 | J22: 0.003248834471 | K22: 0.003240778915 | L22: 0.01140602528
A23: 1 | B23: 2021-10-28 | C23: 0.0028 | D23: 7.777777778e-06 | E23: 2922.58 | F23: -0.002038551502 | G23: 0.9979614485 | H23: -0.002046329279 | I23: 15448.12 | J23: 0.01383676597 | K23: 0.0138289882 | L23: -0.01587531748
A24: 1 | B24: 2021-10-27 | C24: 0.0029 | D24: 8.055555556e-06 | E24: 2928.55 | F24: 0.04836688814 | G24: 1.048366888 | H24: 0.04835883258 | I24: 15235.84 | J24: 8.532549214e-06 | K24: 4.769936584e-07 | L24: 0.04835835559
A25: 1 | B25: 2021-10-26 | C25: 0.0029 | D25: 8.055555556e-06 | E25: 2793.44 | F25: 0.006478205415 | G25: 1.006478205 | H25: 0.006470149859 | I25: 15235.71 | J25: 0.000590892008 | K25: 0.0005828364525 | L25: 0.005887313407
A26: 3 | B26: 2021-10-25 | C26: 0.0028 | D26: 2.333333333e-05 | E26: 2775.46 | F26: 0.001067628494 | G26: 1.001067628 | H26: 0.001044295161 | I26: 15226.71 | J26: 0.009005596058 | K26: 0.008982262724 | L26: -0.007937967563
A27: 1 | B27: 2021-10-22 | C27: 0.0026 | D27: 7.222222222e-06 | E27: 2772.5 | F27: -0.02910411436 | G27: 0.9708958856 | H27: -0.02911133658 | I27: 15090.2 | J27: -0.008282263018 | K27: -0.00828948524 | L27: -0.02082185134
A28: 1 | B28: 2021-10-21 | C28: 0.0028 | D28: 7.777777778e-06 | E28: 2855.61 | F28: 0.002566443142 | G28: 1.002566443 | H28: 0.002558665364 | I28: 15215.7 | J28: 0.00619831383 | K28: 0.006190536052 | L28: -0.003631870689
A29: 1 | B29: 2021-10-20 | C29: 0.0027 | D29: 7.5e-06 | E29: 2848.3 | F29: -0.009782926117 | G29: 0.9902170739 | H29: -0.009790426117 | I29: 15121.68 | J29: -0.0004899048949 | K29: -0.0004974048949 | L29: -0.009293021222
A30: 1 | B30: 2021-10-19 | C30: 0.0029 | D30: 8.055555556e-06 | E30: 2876.44 | F30: 0.006026140088 | G30: 1.00602614 | H30: 0.006018084532 | I30: 15129.09 | J30: 0.007116235517 | K30: 0.007108179962 | L30: -0.00109009543
A31: 3 | B31: 2021-10-18 | C31: 0.0025 | D31: 2.083333333e-05 | E31: 2859.21 | F31: 0.009073583907 | G31: 1.009073584 | H31: 0.009052750573 | I31: 15021.81 | J31: 0.008320471543 | K31: 0.00829963821 | L31: 0.0007531123634
A32: 1 | B32: 2021-10-15 | C32: 0.0025 | D32: 6.944444444e-06 | E32: 2833.5 | F32: 0.001859813877 | G32: 1.001859814 | H32: 0.001852869433 | I32: 14897.34 | J32: 0.004973636441 | K32: 0.004966691996 | L32: -0.003113822564
A33: 1 | B33: 2021-10-14 | C33: 0.0025 | D33: 6.944444444e-06 | E33: 2828.24 | F33: 0.02546773024 | G33: 1.02546773 | H33: 0.02546078579 | I33: 14823.43 | J33: 0.01713186316 | K33: 0.01712491871 | L33: 0.008335867083
A34: =B34-B35 -> 1 | B34: 2021-10-13 | C34: 0.0027 | D34: 7.5e-06 | E34: 2758 | F34: 0.008682422301 | G34: 1.008682422 | H34: 0.008674922301 | I34: 14571.64 | J34: 0.007281635725 | K34: 0.007274135725 | L34: 0.001400786576
B35: 2021-10-12 | C35: 0.00218 | E35: 2734.26 | I35: 14465.92
F36: =SQRT(SUM(((F6:F34)*(F6:F34>0)-F37)^2)/28) -> 0.01129500769 | G36: =_xlfn.FORMULATEXT(F36) -> {=RACINE(SOMME(((F6:F34)*(F6:F34>0)-F37)^2)/28)}
B37: Moyenne jour | C37: =AVERAGE(C6:C34) -> 0.002968965517 | D37: =AVERAGE(D6:D34) -> 1.161877395e-05 | F37: =AVERAGE(F6:F34) -> 0.002639385403 | H37: =AVERAGE(H6:H34) -> 0.002627766629 | J37: =AVERAGE(J6:J34) -> 0.003161180431 | K37: =AVERAGE(K6:K34) -> 0.003149561657 | L37: =AVERAGE(L6:L34) -> -0.0005217950279
B38: Perform période | F38: =PRODUCT(G6:G34)-1 -> 0.07581941732 | H38: =PRODUCT(1+H6:H34)-1 -> 0.07545678017 | J38: =SUM(J6:J34) -> 0.09167423249 | K38: =SUM(K6:K34) -> 0.09133728805 | L38: =SUM(L6:L34) -> -0.01513205581
B39: Volatilité jour | C39: =STDEV(C6:C34) -> 0.0002726895779 | D39: =STDEV(D6:D34) -> 6.786728479e-06 | F39: =STDEV(F6:F34) -> 0.01554790557 | H39: =STDEV(H6:H34) -> 0.01555020628 | J39: =STDEV(J6:J34) -> 0.007384824704 | K39: =STDEV(K6:K34) -> 0.007386040675 | L39: =STDEV(L6:L34) -> 0.01381649774
B40: Volatilité periode | C40: =C39*SQRT(29) -> 0.001468478318 | D40: =D39*SQRT(29) -> 3.654765136e-05 | F40: =F39*SQRT(COUNTA(F6:F34)) -> 0.08372803392 | H40: =H39*SQRT(COUNTA(H6:H34)) -> 0.0837404236 | J40: =J39*SQRT(29) -> 0.0397684981 | K40: =K39*SQRT(29) -> 0.03977504631 | L40: =L39*SQRT(29) -> 0.0744041174
B41: Sharpe période | H41: =H38/H40 -> 0.9010795137 | K41: =K38/K40 -> 2.296346492
B42: Treynor période | H42: =H38/$O$12 -> 0.07806124337
B43: Info Ratio période | H43: =L40/$O$12 -> 0.07697224693
E44: verif perf | F44: =(E6/E35-1)-F38 -> 4.440892099e-16 | I44: verif perf | J44: =LN(I6/I35)-J38 -> 1.249000903e-16
B46: Données | D46: Y | E46: X
C47: Risk free | D47: Yahoo! Inc. | E47: Nasdaq
D48: Close | E48: Close
B49: 2016-09-13 | C49: 0.0034 | D49: 43.04 | E49: 5155.25
B50: 2016-09-12 | C50: 0.0035 | D50: 43.46 | E50: 5211.89
B51: 2016-09-09 | C51: 0.0033 | D51: 42.92 | E51: 5125.91
B52: 2016-09-08 | C52: 0.0033 | D52: 44.36 | E52: 5259.48
B53: 2016-09-07 | C53: 0.0033 | D53: 44.35 | E53: 5283.93
B54: 2016-09-06 | C54: 0.003 | D54: 44.71 | E54: 5275.91
B55: 2016-09-02 | C55: 0.003 | D55: 43.28 | E55: 5249.9
B56: 2016-09-01 | C56: 0.0031 | D56: 42.93 | E56: 5227.21
B57: 2016-08-31 | C57: 0.0032 | D57: 42.75 | E57: 5213.22
B58: 2016-08-30 | C58: 0.0032 | D58: 42.58 | E58: 5222.99
B59: 2016-08-29 | C59: 0.0031 | D59: 42.26 | E59: 5232.33
B60: 2016-08-26 | C60: 0.0031 | D60: 42.27 | E60: 5218.92
B61: 2016-08-25 | C61: 0.0031 | D61: 42.03 | E61: 5212.2
B62: 2016-08-24 | C62: 0.0031 | D62: 41.91 | E62: 5217.69
B63: 2016-08-23 | C63: 0.0031 | D63: 42.6 | E63: 5260.08
B64: 2016-08-22 | C64: 0.0028 | D64: 42.52 | E64: 5244.6
B65: 2016-08-19 | C65: 0.0029 | D65: 43.02 | E65: 5238.38
B66: 2016-08-18 | C66: 0.0028 | D66: 42.9 | E66: 5240.15
B67: 2016-08-17 | C67: 0.0029 | D67: 42.7 | E67: 5228.66
B68: 2016-08-16 | C68: 0.0029 | D68: 42.49 | E68: 5227.11
B69: 2016-08-15 | C69: 0.0028 | D69: 42.67 | E69: 5262.02
B70: 2016-08-12 | C70: 0.0026 | D70: 42.94 | E70: 5232.89
B71: 2016-08-11 | C71: 0.0028 | D71: 41.27 | E71: 5228.4
B72: 2016-08-10 | C72: 0.0027 | D72: 39.93 | E72: 5204.58
B73: 2016-08-09 | C73: 0.0029 | D73: 39.24 | E73: 5225.48
B74: 2016-08-08 | C74: 0.0025 | D74: 39.24 | E74: 5213.14
B75: 2016-08-05 | C75: 0.0025 | D75: 38.99 | E75: 5221.12
B76: 2016-08-04 | C76: 0.0025 | D76: 38.92 | E76: 5166.25
B77: 2016-08-03 | C77: 0.0027 | D77: 38.39 | E77: 5159.74
B78: 2016-08-02 | C78: 0.00218 | D78: 38.57 | E78: 5137.73

Sheet EXO-4
B1: NORMALISATION DES VARIABLES - SKEWNESS - KURTOSIS - CORNISH FISHER
B3: Tableau Rendement Actif A et B
B5: Année | C5: A | D5: B | E5: M | G5: Hypothèses
B6: 1 | C6: 0.07 | D6: 0.15 | E6: 0.115 | G6: Un investisseur veut une valeur minimale de rendement ( valeur de réserve de 9%) | N6: 0.115
B7: 2 | C7: 0.19 | D7: 0.25 | E7: 0.185 | G7: Le risque de taux ( annuel ) sans risque est de 5% | N7: 0.185
B8: 3 | C8: 0.21 | D8: 0.35 | E8: 0.495 | G8: RL | H8: 0.09 | N8: 0.495
B9: 4 | C9: 0.13 | D9: 0.17 | E9: 0.195 | G9: RF | H9: 0.05 | N9: 0.195
B10: 5 | C10: 0.22 | D10: 0.18 | E10: 0.185 | N10: 0.185
B15: Question 1 | C15: Entre A et B quel Actif a d'avantage de risque en termes de mouvement extrêmes
C16: Baser votre analyse à partir de la distribution des rendements des fonds; grace notamment au Kurtosis et au Skewness
B18: Question 2 | C18: Calculer la perte maximale qu'il soit possible avec une probabilié de 95% pour le fonds A et le fonds B en utilisant l'approximation de Cornish-Fisher
B21: Solution Question 2
B23: Le Skewness( u3 ou coefficient d'asymétrie) permet de juger l'occurrence de mouvements négatifs
B24: Si Skewness négatif => Plus grande proba de pertes par rapport aux gains . Si skew = 0 la distribution est normale
B26: Le kurtosis (u4 ou coefficient d'applatissement) permet de juger l'occurrence de mouvements extrêmes
B27: Si Kurtosis < 0 Forte probabilité de fort mouvement
B31: Calcul indicateurs statistique | E31: A | F31: B | H31: Année | I31: A | J31: Return-u | K31: (Return-u)^2 | L31: (Return-u)^3 | M31: (Return-u)^4
B32: Rendement moyen | E32: =AVERAGE(C6:C10) -> 0.164 | F32: =AVERAGE(D6:D10) -> 0.22 | G32: =_xlfn.FORMULATEXT(F32) -> =MOYENNE(D6:D10) | H32: 1 | I32: =C6 -> 0.07 | J32: =I32-$E$32 -> -0.094 | K32: =J32^2 -> 0.008836 | L32: =J32^3 -> -0.000830584 | M32: =J32^4 -> 7.8074896e-05
B33: Variance | E33: =K37 -> 0.003184 | F33: =K45 -> 0.00536 | G33: =K45 | H33: 2 | I33: =C7 -> 0.19 | J33: =I33-$E$32 -> 0.026 | K33: =J33^2 -> 0.000676 | L33: =J33^3 -> 1.7576e-05 | M33: =J33^4 -> 4.56976e-07
B34: Volatilité | E34: =SQRT(K37) -> 0.05642694392 | F34: =SQRT(K45) -> 0.07321202087 | G34: =RACINE(K45) | H34: 3 | I34: =C8 -> 0.21 | J34: =I34-$E$32 -> 0.046 | K34: 0.002116 | L34: =J34^3 -> 9.7336e-05 | M34: =J34^4 -> 4.477456e-06
B35: Volat Excel | E35: =STDEVP(C6:C10) -> 0.05642694392 | F35: =STDEVP(D6:D10) -> 0.07321202087 | G35: =ECARTYPEP(D6:D10) | H35: 4 | I35: =C9 -> 0.13 | J35: -0.034 | K35: 0.001156 | L35: =J35^3 -> -3.9304e-05 | M35: =J35^4 -> 1.336336e-06
B36: Skewnes U3 | D36: S | E36: =L37/E35^3 -> -0.6449394079 | F36: =L45/(F35^3) -> 0.86234921 | G36: =L45/(F35^3) | H36: 5 | I36: =C10 -> 0.22 | J36: 0.056 | K36: 0.003136 | L36: =J36^3 -> 0.000175616 | M36: =J36^4 -> 9.834496e-06
B37: Kurtosis U4 | D37: K | E37: =M37/E35^4-3 -> -1.142010303 | F37: =M45/F35^4-3 -> -0.7776230786 | G37: =M45/F35^4-3 | H37: Total | J37: =SUM(J32:J36)/5 -> 2.220446049e-17 | K37: =SUM(K32:K36)/5 -> 0.003184 | L37: =SUM(L32:L36)/5 -> -0.000115872 | M37: =SUM(M32:M36)/5 -> 1.8836032e-05
E38: =_xlfn.SKEW.P(I32:I36) -> -0.6449394079 | F38: =_xlfn.SKEW.P(I40:I44) -> 0.86234921 | G38: =COEFFICIENT.ASYMETRIE.P(I40:I44) | J38: M1 | K38: M2 | L38: M3 | M38: M4
B39: RL | D39: =STDEV(I32:I36) -> 0.06308724118 | E39: =KURT(I32:I36) -> -0.5680412111 | F39: =KURT(I40:I44) -> 0.8895076855 | G39: =KURTOSIS(I40:I44) | H39: Année | I39: B | J39: Return-u | K39: (Return-u)^2 | L39: (Return-u)^3 | M39: (Return-u)^4
B40: RF | D40: =5*6/4/3/2 -> 1.25 | E40: =SUM(M32:M36)/D39^4 -> 5.945567031 | H40: 1 | I40: =D6 -> 0.15 | J40: =I40-$F$32 -> -0.07 | K40: =J40^2 -> 0.0049 | L40: =J40^3 -> -0.000343 | M40: =J40^4 -> 2.401e-05
D41: =3*4*4/3/2 -> 8 | E41: =E40*D40-D41 -> -0.5680412111 | H41: 2 | I41: =D7 -> 0.25 | J41: =I41-$F$32 -> 0.03 | K41: =J41^2 -> 0.0009 | L41: =J41^3 -> 2.7e-05 | M41: =J41^4 -> 8.1e-07
B42: le skew negatif veut dire que le portefeuille est risqué à la baisse | H42: 3 | I42: =D8 -> 0.35 | J42: 0.13 | K42: 0.0169 | L42: =J42^3 -> 0.002197 | M42: =J42^4 -> 0.00028561
B43: Le kurtosis élevé renforce le fait que les coups dur de grandes | H43: 4 | I43: =D9 -> 0.17 | J43: -0.05 | K43: 0.0025 | L43: =J43^3 -> -0.000125 | M43: =J43^4 -> 6.25e-06
B44: amplituel peuvent se produire a la baisse | H44: 5 | I44: =D10 -> 0.18 | J44: -0.04 | K44: 0.0016 | L44: =J44^3 -> -6.4e-05 | M44: =J44^4 -> 2.56e-06
H45: Total | J45: =SUM(J40:J44)/5 -> -3.330669074e-17 | K45: =SUM(K40:K44)/5 -> 0.00536 | L45: =SUM(L40:L44)/5 -> 0.0003384 | M45: =SUM(M40:M44)/5 -> 6.3848e-05
B46: Le fond A est le plus dangereux car il perd plus souvent et en plus grande quantité | J46: M1 | K46: M2 | L46: M3 | M46: M4
B48: Lorsque la distribution est symétrique, le coefficient de Skewness est nul.
B49: Lorsque la distribution possède une forte queue vers la droite, le coefficient cient de Skewness est positif (les + l'emportent).
B50: Lorsque la distribution possède une forte queue vers la gauche,le coeffcient de Skewness est négatif (les - l'emportent).
B52: Solution Question 2
B54: Pour répondre à cette question il faut répondre à la notion de Value at Risk (Var) qui se concentre sur l’évaluation du risque de perte maximale.
B55: On recourt au calcul de VaR modifiée par l’approximation de Cornish- Fisher
B56: Et ceci afin de prendre en compte le caractère « non Normale » de la distribution des performance de A et de B mis en évidence à la question 1,
B58: Formule de calcul de la Valeur au risque modifiée
B59: MVvaRα = RL – E(R) +z(1-α)*σ(R)
B61: Tout d'abord calculons le terme z(1-α) qui est donné par la formule suivante avec z(1-α) = zc= 1,645 aus seuil de confiance de 5%
B62: Correspond à la probabilité 95% que X
B66: Cacul décomposé de Z pour A | F66: Cacul décomposé de Z pour B
B67: z(c) = | C67: =_xlfn.NORM.INV(95%,0,1) -> 1.644853627 | E67: z(c) = | F67: =_xlfn.NORM.INV(95%,0,1) -> 1.644853627
B68: + | C68: =E36/6*(C67^2-1) -> -0.1833286976 | E68: + | F68: =F36/6*(F67^2-1) -> 0.2451290084
B69: + | C69: =E37/24*(C67^3-3*C67) -> 0.02304662049 | E69: + | F69: =F37/24*(F67^3-3*F67) -> 0.01569301427
B70: - | C70: =E36^2/36*(2*C67^3-5*C67) -> 0.007812611548 | E70: - | F70: =F36^2/36*(2*F67^3-5*F67) -> 0.01396769496
B71: = | C71: =C67+C68+C69-C70 -> 1.476758938 | E71: = | F71: =F67+F68+F69-F70 -> 1.891707955
B73: Application formule Valeur au Risque modifié
B74: Var a 95 | F74: Var b 95
B75: MVAR A = | C75: RL | D75: =H8 -> 0.09 | F75: MVAR B = | G75: RL | H75: =H8 -> 0.09
B76: - | C76: E(R) | D76: =E32 -> 0.164 | F76: - | G76: E(R) | H76: =F32 -> 0.22
B77: + | C77: zc * σ | D77: =C71*E34 -> 0.08332899379 | F77: + | G77: zc * σ | H77: =F71*F34 -> 0.1384957623
D78: =D75-D76+D77 -> 0.009328993795 | H78: =H75-H76+H77 -> 0.008495762256
D80: =D75-D76+C67*E34 -> 0.01881406336 | H80: =H75-H76+F35*F67 -> -0.009576941934

Sheet EXO-5
B3: CALCUL INDICE SORTINO
B5: Hypothèses
B6: Vous décidez d’investir à horizon 6 ans sur un fond de gestion active sur les nouvelles technologies.
B7: Votre valeur minimale de rendement correspond la performance du benchmark du secteur.
B8: Vous envisager d’investir 100,000 dans le Fonds TEC dont les performances annuelles sont synthétisées dans le tableau
B11: Tableau Rendement Actif A et B
B12: Montant investi Début A1 | D12: 100000
B13: Flux de trésorie attendu sur le benchmark (gestion passive) | G13: Rendement attendus sur le fond TECF (gestion active)
B14: Année | C14: Benchmark | G14: Année | H14: Fond TEC
B15: 1 | C15: 10000 | G15: 1 | H15: -0.1846
B16: 2 | C16: 11000 | G16: 2 | H16: 0.7059
B17: 3 | C17: 12000 | G17: 3 | H17: -0.2042
B18: 4 | C18: 13500 | G18: 4 | H18: 0.0707
B19: 5 | C19: 15000 | G19: 5 | H19: -0.0596
B20: 6 | C20: 20000 | G20: 6 | H20: 0.5934
B22: Question 1 | C22: Quel est le rendement du portefeuille benchmark ( utiliser la fonction Tri)
C23: Calculer le MAR (minimum acceptable return)
B25: Question 2 | C25: Quel est le rendement du fonds TEC ( utiliser la fonction Tri)
B27: Question 3 | C27: Calculer l'indice Sortino du Fonds avec don MAR (minimum acceptable return)
B30: Reponse Q1:
B32: L’investisseur souhaite à minima sur les 6 ans d’investissement un taux de rendement (rentabilité) au moins égale à celui benchmark.
B33: Il faut donc calculer le taux de rendement du benchmark à partir des les flux de trésorerie attendus par les analystes sur le benchmark.
B35: Etape 1 reconstitution des flux de trésorerie | G35: Etape 2 : Calcul du taux de rendement du Benchmark à partir des flux de trésorerie prévus
H36: Ce taux correspond au MAR
B37: Année | C37: Investissement | D37: Flux Bench | E37: Flux Net | G37: Total | H37: Flux Actualisés | I37: Rend TRI
B38: 0 | C38: =-D12 -> -100000 | D38: 0 | E38: =C38+D38 -> -100000 | G38: =D38-C38 -> 100000 | H38: =E38/(1+$I$38)^B38 -> -100000 | I38: =IRR(E38:E44) -> 0.1296167685
B39: 1 | D39: =C15 -> 10000 | E39: 10000 | G39: =G38+D39 -> 110000 | H39: 8852.559805
B40: 2 | D40: 11000 | E40: 11000 | G40: 121000 | H40: 8620.459661
B41: 3 | D41: 12000 | E41: 12000 | G41: 133000 | H41: 8325.06924
B42: 4 | D42: 13500 | E42: 13500 | G42: 146500 | H42: 8291.044499
B43: 5 | D43: 15000 | E43: 15000 | G43: 161500 | H43: 8155.218586
B44: 6 | C44: =D12 -> 100000 | D44: 20000 | E44: 120000 | G44: 181500 | H44: 57755.64821
B45: Total | C45: =SUM(C38:C44) -> 0 | D45: =SUM(D38:D44) -> 81500 | E45: =SUM(E38:E44) -> 81500 | H45: =SUM(H38:H44) -> 0
F46: Le taux de rendement est le taux d'actualisation des flux dans le temps
F47: La somme des montants actualisés dans le temps au taux de rendement doit être égale à zéro
B49: Reponse Q2:
B50: Performance fond TEC
B51: Année | C51: Fond TEC
B52: 1 | C52: =H15 -> -0.1846
B53: 2 | C53: 0.7059 | F53: MAR (RL) | G53: =I38 -> 0.1296167685
B54: 3 | C54: -0.2042 | F54: Rtec - RL | G54: =C58-I38 -> 0.0239832315
B55: 4 | C55: 0.0707
B56: 5 | C56: -0.0596 | F56: =CONCATENATE("L'investisseur doit donc recherché un rendement minimum de son investissement de ", TEXT(G53*100," ##,###"),"%" ) -> L'investisseur doit donc recherché un rendement minimum de son investissement de 12,962%
B57: 6 | C57: 0.5934 | F57: =CONCATENATE("L'excess Return du fond es de ", TEXT(G54*100," ##,###"),"%" ) -> L'excess Return du fond es de 2,398%
B58: Total | C58: =SUM(C52:C57)/COUNTA(B52:B57) -> 0.1536 | D58: =AVERAGE(C52:C57) -> 0.1536
B62: Réponse Q3: | C62: Calcul de l'indice de Sortino pour juger la qualité de l'investissement
B65: Etape 1 : Calcul de la Semi-Variance | G65: Etape 2 : Appliquer la formule de Sortino
B67: SV = 1/T * Σ ( Rteci-RL)^2 , si Rpt>Rl | G67: Appliquer la formule de Sortino
B68: Année i | C68: Fond TEC | D68: RL | E68: ( Rpt-Rl)^2 | G68: RS= Rtec-RL / Racine ( SV /in )
B69: 1 | C69: =C52 -> -0.1846 | D69: 0.1296167685 | E69: =IF(C69<D69, (C69-D69)^2, 0) -> 0.09873217761 | G69: avec
B70: 2 | C70: 0.7059 | D70: 0.1296167685 | E70: =IF(C70<D70, (C70-D70)^2, 0) -> 0 | G70: Rtec-RL = | H70: =G54 -> 0.0239832315
B71: 3 | C71: -0.2042 | D71: 0.1296167685 | E71: 0.1114336349 | G71: Racine( SV / in ) | H71: =SQRT(E77/B74) -> 0.2038953913
B72: 4 | C72: 0.0707 | D72: 0.1296167685 | E72: 0.003471185611
B73: 5 | C73: -0.0596 | D73: 0.1296167685 | E73: 0.03580298548 | G73: =CONCATENATE( "RS = ",TEXT(G54*100,"##,###"),"% / ",TEXT(SQRT(E75/B74)*100,"##,###"), "%") -> RS = 2,398% / 20,39%
B74: 6 | C74: 0.5934 | D74: 0.1296167685 | E74: 0
D75: Total si Rteci<RL | E75: =SUM(E69:E74) -> 0.2494399836 | G75: RS = | H75: =H70/(SQRT(E75/6) ) -> 0.117625177
D77: SV= | E77: =E75 -> 0.2494399836
B80: La rentabilité excédentaire par unité de risque est bien RS
B81: Si la rémunération offerte par le benchmark est supérieure au RS alors l'investissement n'est pas une bonne perpective d'investissement

Sheet EXO-6
B3: CALCUL INDICE M2
B5: Hypothèses
B6: Rendement sans risque pour l'investisseur (Rf) | F6: 0.03
B7: =CONCATENATE("Vous gérez un fond dont la partie sans risque vous rapporter un rendement annuel de ", TEXT(F6*100,"##,####"),"%" ) -> Vous gérez un fond dont la partie sans risque vous rapporter un rendement annuel de 3,%
B8: Vous désirez compléter votre allocation par un investissement dans un fonds plus agressif qui permettra d’augmenter le rendement par rapport au benchmark
B9: Vous avez le choix entre le fonds A et le fonds B pour compléter votre allocation ( tableau ci-dessous)
B11: Actif | C11: Rendement | D11: Risque
B12: A | C12: 0.2 | D12: 0.15
B13: B | C13: 0.138 | D13: 0.09
B14: Benchmark | C14: 0.06 | D14: 0.04
B16: Question 1 : Quel fonds offre la meilleure rémunération du risque total
C17: Utiliser le ratio de Sharpe au taux sans risque égal au rendement du benchmark
B19: Réponse 1: Determination du Ratio de Sharpe qui est un ratio de risque total
B21: Actif | C21: Excess Reture | D21: Ecart type (σ) | E21: Sharpe Ratio
B22: A | C22: =C12-Rf -> 0.17 | D22: =D12 -> 0.15 | E22: =C22/D22 -> 1.133333333
B23: B | C23: =C13-Rf -> 0.108 | D23: =D13 -> 0.09 | E23: =C23/D23 -> 1.2
B24: Benchmark | C24: =C14-Rf -> 0.03 | D24: 0.04 | E24: =C24/D24 -> 0.75
B25: Plus le SR est élevé meilleure est la rémunération par unité de risque total
B26: Le "meilleur" investissement est donc = | E26: =IF(E23<E22,B22,B23) -> B | F26: et il doit être comparer alors au benchmark
B29: Question 2 : Quel fonds offre la meilleure rémunération du risque total | C29: Comparer le fond A ou B à une combinaison de même risque ( σa ou σb ) qui serait composé d'un actif sans risque et du fond benchmark
B31: Réponse 2: Utilisation de la méthode du M2 pour calculer le differential return
B33: Formule M2 | C33: R th p = Rf + σp *( Rb -Rf) / σb
B35: On considère le rendement d'un portefeuille qui serait composé d'un actif sans risque ( Rf) et du fond de référence (benchmark)
B36: Il faut faire correspondre au rendement théorique d'un portefeuille de risque de 15% ( écart type de du fonds A) le rendement d'un portefeuille composé de l'actif sans risque (Rf) + le benchmark
B37: avec un risque ( écart type du benchark)
B40: Actif | C40: Rp | D40: Rth p | E40: Rp -Rth p | G40: Rp=Rendement du portefeuille du fond
B41: A | C41: =C12 -> 0.2 | D41: =Rf+D22/D$24*(C$14-Rf) -> 0.1425 | E41: =C41-D41 -> 0.0575 | G41: R th p =Rendement théorique calculé par la méthode du M2
B42: B | C42: =C13 -> 0.138 | D42: =Rf+D23/D$24*(C$14-Rf) -> 0.0975 | E42: =C42-D42 -> 0.0405 | G42: Rp - Rth p = différence qui donne la valeur du Différentiel Return
B44: Le differential Return offre un rendement supérieurs à toute combinaison d'un fonds risqué et non risqué de même risque total
B45: Selon ce critère le rendement théorique du fond le plus élevé sera le plus performant
B49: Question 3: Construire des portefeuilles de même risque que le portefeuille de référence en utilisant la méthode du M2
B52: Réponse 3: Construction des portefeuilles de même risque que le portefeuille de référence
B54: Pour comparer directement le fonds au fond passif il convient d'emprunter ou de prêter au taux sans risque de façon à augmenter ou à diminuer l'exposition au risque du portefeuille géré
B55: afin de le mettre au niveau de celui du portefeuille de référence
B57: On combine alors le fonds A et le Fonds B avec un actif sans risque afin d'obtenir un fonds risqué P* de niveau de risque du benchmark
B59: On en déduit le surplus ou le déficit de rendement qui résulte de la difféence entre les rendements des actifs A* et B* et celui du portefeuille de référence
B61: Actif | C61: Risque | D61: X | E61: Rendement | G61: Rendement= (Poportion * rendement Fond actif ) + ( 1-proportion * Rendement Fonds sans risque)
B62: A* | C62: =CONCATENATE(" σp * x = σb ") -> σp * x = σb | D62: =D14/D12 -> 0.2666666667 | E62: =D62*C12+ (1-D62)*Rf -> 0.07533333333
B63: B* | C63: =CONCATENATE(" σp * x = σb ") -> σp * x = σb | D63: =D14/D13 -> 0.4444444444 | E63: =D63*C13+ (1-D63)*Rf -> 0.078 | G63: Ce rendement est à comparer au taux du benchmark

Sheet ATTRIB PERF
B2: ATTRIBUTION DE PERFORMANCE
B3: Une analyse de l'évolution des tendances financières décompose les allocations stratégiques de deux fonds | G3: Chaque Allocation Stratégique est composée de quatre actifs qui ont les rendements suivants
C7: Mid Cap | D7: Small Cap | E7: Croissance | G7: Fonds | H7: Alloc Stateg | I7: % Alloc | J7: Actif 1 | K7: Actif 2 | L7: Actif 3 | M7: Actif 4
B8: Fonds A | C8: 0.3 | D8: 0.4 | E8: 0.3 | G8: Fonds A | H8: Mid CaP | I8: =$C$8 -> 0.3 | J8: 0.15 | K8: 0.12 | L8: 0.02 | M8: 0.16 | O8: =AVERAGE(J8:M8) -> 0.1125
B9: Fonds B | C9: 0.5 | D9: 0.25 | E9: 0.25 | H9: Small Caa | I9: =$D$8 -> 0.4 | J9: 0.25 | K9: 0.35 | L9: 0.13 | M9: 0.14 | O9: =AVERAGE(J9:M9) -> 0.2175
H10: Croissance | I10: =$E$8 -> 0.3 | J10: 0.03 | K10: 0.45 | L10: 0.17 | M10: 0.21 | O10: 0.215
G11: Fonds | H11: Alloc Stateg | I11: Actif 1 | J11: Actif 1 | K11: Actif 2 | L11: Actif 3 | M11: Actif 4
G12: Fonds B | H12: Mid Caa | I12: =$C$9 -> 0.5 | J12: 0.08 | K12: 0.16 | L12: 0.19 | M12: 0.22 | O12: 0.1625
H13: Small Caa | I13: =$D$9 -> 0.25 | J13: 0.14 | K13: 0.29 | L13: 0.17 | M13: 0.02 | O13: 0.155
H14: Croissance | I14: =$E$9 -> 0.25 | J14: 0.02 | K14: 0.35 | L14: 0.23 | M14: 0.32 | O14: 0.23
G16: Hypothèse
G17: Le gestionnaire du fonds A est actif celui du fonds B est passif.
G18: Le gestionnaire du fonds B sert de benchmark
C22: (Wia-Wib)
B25: Question 1 : Décomposer la performance du fonds A de façon à faire apparaitre l'allocation tactique, la sélectivité et l'effet combiné des deux décision.
B27: Etape 1 : Calcul de l'excédent de rendement par rapport au benchmark
B29: RS= Σ Wia Ria - Σ Wib Rib > 0
O30: AT a= Σ (Wia-Wib)*( Rib-Rb)
B31: Calcul de Σ Wia Ria | D31: Fonds | E31: Alloc Stateg | F31: R | G31: % Alloc (Wia) | H31: Actif 1 (Ri) | I31: Actif 2 | J31: Actif 3 | K31: Actif 4 | L31: Rend My(Ria) | M31: Σ Wia Ria | O31: (Wia-Wib) | P31: ( Rib-Rb) | Q31: AT a
D32: Fonds A | E32: Mid Cap | F32: 1 | G32: =$C$8 -> 0.3 | H32: 0.15 | I32: 0.12 | J32: 0.2 | K32: 0.16 | L32: =AVERAGE(H32:K32) -> 0.1575 | M32: =G32*(AVERAGE(H32:K32)) -> 0.04725 | O32: =G32-G38 -> -0.2 | P32: =L38-$M$41 -> -0.03875 | Q32: =O32*P32 -> 0.00775
E33: Small Cap | F33: 2 | G33: =$D$8 -> 0.4 | H33: 0.25 | I33: 0.35 | J33: 0.13 | K33: 0.14 | L33: =AVERAGE(H33:K33) -> 0.2175 | M33: =G33*(AVERAGE(H33:K33)) -> 0.087 | O33: =G33-G39 -> 0.15 | P33: =L39-$M$41 -> -0.00125 | Q33: =O33*P33 -> -0.0001875
E34: Croissance | F34: 3 | G34: =$E$8 -> 0.3 | H34: 0.3 | I34: 0.45 | J34: 0.17 | K34: 0.21 | L34: =AVERAGE(H34:K34) -> 0.2825 | M34: =G34*(AVERAGE(H34:K34)) -> 0.08475 | O34: =G34-G40 -> 0.05 | P34: =L40-$M$41 -> 0.07875 | Q34: 0.0039375
K35: Total | L35: Ri | M35: =SUM(M32:M34) -> 0.219 | Q35: =SUM(Q32:Q34) -> 0.0115
O36: Sel a= Σ Wib*( Ria-Rib)
B37: Calcul de Σ Wib Rib | D37: Fonds | E37: Alloc Stateg | F37: i | G37: % Alloc (Wib) | H37: Actif 1 (Ri) | I37: Actif 2 | J37: Actif 3 | K37: Actif 4 | L37: Rend My(Rib) | M37: Σ Wia Ria | O37: Wib | P37: ( Ria-Rb) | Q37: Sel a
D38: Fonds B | E38: Mid Cap | F38: 1 | G38: =I12 -> 0.5 | H38: 0.08 | I38: 0.16 | J38: 0.19 | K38: 0.22 | L38: =AVERAGE(H38:K38) -> 0.1625 | M38: =G38*(AVERAGE(H38:K38)) -> 0.08125 | O38: =G38 -> 0.5 | P38: =L32-$M$41 -> -0.04375 | Q38: =O38*P38 -> -0.021875
E39: Small Cap | F39: 2 | G39: =I13 -> 0.25 | H39: 0.14 | I39: 0.29 | J39: 0.17 | K39: 0.2 | L39: =AVERAGE(H39:K39) -> 0.2 | M39: =G39*(AVERAGE(H39:K39)) -> 0.05 | O39: =G39 -> 0.25 | P39: =L33-$M$41 -> 0.01625 | Q39: =O39*P39 -> 0.0040625
E40: Croissance | F40: 3 | G40: =I14 -> 0.25 | H40: 0.2 | I40: 0.35 | J40: 0.25 | K40: 0.32 | L40: =AVERAGE(H40:K40) -> 0.28 | M40: =G40*(AVERAGE(H40:K40)) -> 0.07 | O40: 0.25 | P40: =L34-$M$41 -> 0.08125 | Q40: 0.0203125
L41: Rb | M41: =SUM(M38:M40) -> 0.20125 | Q41: =SUM(Q38:Q40) -> 0.0025
H42: Le fonds A suraerforme donc le benchmark | L42: Différence | M42: =M35-M41 -> 0.01775
O43: Ia= Σ (Wia- Wib)*( Ria-Rib)
B44: Etape 2 : Synthèse de comparaison des deux fonds | L44: At a | M44: =Q35 -> 0.0115 | O44: (Wia-Wib) | P44: ( Ria-Rib) | Q44: IT a
E45: Allocation de A aar raaaort à B | H45: Rendement de A aar raaaort à B | L45: Sel a | M45: =Q41 -> 0.0025 | O45: =O32 -> -0.2 | P45: =L32-L38 -> -0.005 | Q45: =O45*P45 -> 0.001
E46: Actif A | F46: Bench | G46: aassif | H46: Actif | I46: Bench | J46: aassif | L46: Ia | M46: =Q48 -> 0.00375 | O46: =O33 -> 0.15 | P46: =L33-L39 -> 0.0175 | Q46: =O46*P46 -> 0.002625
D47: Mid Cap | E47: =G32 -> 0.3 | F47: =G38 -> 0.5 | G47: =IF(E47>F47,CONCATENATE("> % ",TEXT(F47*100,"###, 00")),CONCATENATE("< % ",TEXT(F47*100,"##,00"))) -> < % 50,00 | H47: =L32 -> 0.1575 | I47: =L38 -> 0.1625 | J47: =IF(H47>I47,CONCATENATE("> % ",TEXT(I47*100,"###, 00")),CONCATENATE("< % ",TEXT(I47*100,"##,00"))) -> < % 16,25 | L47: Verif | M47: =M42-SUM(M44:M46) -> 0 | O47: 0.05 | P47: 0.0025 | Q47: 0.000125
D48: Small Cap | E48: =G33 -> 0.4 | F48: =G39 -> 0.25 | G48: =IF(E48>F48,CONCATENATE("> % ",TEXT(F48*100,"###, 00")),CONCATENATE("< % ",TEXT(F48*100,"##,00"))) -> > % 25,00 | H48: =L33 -> 0.2175 | I48: =L39 -> 0.2 | J48: =IF(H48>I48,CONCATENATE("> % ",TEXT(I48*100,"###, 00")),CONCATENATE("< % ",TEXT(I48*100,"##,00"))) -> > % 20,00 | Q48: =SUM(Q45:Q47) -> 0.00375
D49: Croissance | E49: =G34 -> 0.3 | F49: =G40 -> 0.25 | G49: > % 25,00 | H49: =L34 -> 0.2825 | I49: =L40 -> 0.28 | J49: > % 28,00 | L49: Contrôle | M49: =Q35+Q41+Q48 -> 0.01775
B51: Allocation tactique
B52: Une bonne allocation tactique suppose que le gestionnaire a été capable de surpondérer les actifs qui ont battu le marché
B53: AT a= Σ (Wia-Wib)*( Rib-Rb)
B54: Ce rendement du à l’allocation tactique provient surtout de la surpondération des valeurs de croissance et de petite capitalisation offrant un profil de rendement attrayant
B56: Sélectivité
B57: La sélectivité implique que le gestionnaire a été capable de sélectionner des actifs offrant une rentabilité supérieure au benchmark
B58: Sel a= Σ Wib*( Ria-Rib)
B59: Dans ce cas le gérant a su choisir des actions de croissance et de petite capitalisation qui offraient des rendements plus élevés que ceux du benchmark
B61: Effet d’interaction
B62: L’effet d’interaction est positif lorsque le gestionnaire prend de bonnes décisions d’allocation d’actifs et de choix de titres.
B63: Ia= Σ (Wia- Wib)*( Ria-Rib)
B64: L’effet est positif si le gestionnaire a surpondéré les classes d’actifs dans lesquelles il a en plus fait preuve de sélectivité.
B67: Question 2 : Décomposer le processus d'allocation suivi par le gérant.
B69: Décomposition d’un processus de gestion qui est composé en trois sous-niveaux
B70: N1- Allocations stratégique. Définition d’une allocation stratégique des ressources qui arend comme référence les grandes lignes du fonds benchmark
B71: N2 ; allocation tactique. Dans ce cas on s’éloigne de l’allocation stratégique du fonds benchmark. Dans ce cas on va suraondérer les classes d’actifs les alus arofitables.
B72: N3. Sélectivité. La sélection des actifs dans lesquels investir aeut être aroche de celle du benchmark. Mais elle tente de générer des rendements au moins légèrement suaérieurs.

Sheet AT-PERF(2)
B2: ATTRIBUTION DE PERFORMANCE
B3: Une analyse a porté l’attention des gestionnaires sur un fonds de style international. Ce fonds international est Investi dans trois classes d’actifs dans les proportions de 25%, 35% et 40% En termes d’allocation géographique ce fonds a investi 40% du capital en actif dans les pays émergents, 20% en actifs européens et 40% en actif japonais. Une analyse détaillée du profil de rendement et de risque des diverses classes d’actifs sur chaque marché est résumée au tableau 1 suivant :
B10: FONDS INVESTI | D10: Classe 1 à n
B11: TABLEAU 1 | C11: % Alloc | D11: Classe 1 - 25% | F11: Classe 2 - 35% | H11: Classe 3 - 40%
B12: Alloc Stateg | C12: (Wip) | D12: Rendement | E12: Béta | F12: Rendement | G12: Béta | H12: Rendement | I12: Béta
B13: Europe | C13: 0.2 | D13: 0.2 | E13: 1.25 | F13: 0.1 | G13: 0.4 | H13: 0.3 | I13: 2
B14: Japon | C14: 0.4 | D14: 0.29 | E14: 0.8 | F14: 0.32 | G14: 0.9 | H14: 0.38 | I14: 1.1
B15: Emergents | C15: 0.4 | D15: 0.44 | E15: 1.2 | F15: 0.5 | G15: 1.4 | H15: 0.25 | I15: 0.65
B17: Les gestionnaires constatent que ce fonds international tente de répliquer de façon active un fonds constitué d’actions européennes, japonaises et sur les marchés émergents selon la clé de répartition respective ( 20%-45%-35%). L’allocation de ce fonds passif entre les trois les trois classes d’actifs respecte toutefois les mêmes proportions que le fonds international actif (25%-35%-40%). Les gestionnaires en déduisent donc que => Ce qui distingue finalement les deux fonds est (1) leur allocation géographique ainsi que (2) la sélectivité opérée au sein des marchés. La sélectivité relative au portefeuille de référence est présentée au tableau 2 suivant :
B24: BENCHMARK
B25: TABLEAU 2 | C25: % Alloc | D25: Classe 1 - 25% | F25: Classe 2 - 35% | H25: Classe 3 - 40%
B26: Alloc Stateg | C26: (Wib) | D26: Rendement | E26: Béta | F26: Rendement | G26: Béta | H26: Rendement | I26: Béta
B27: Europe | C27: 0.2 | D27: 0.2 | E27: 1.25 | F27: 0.098 | G27: 0.4 | H27: 0.29 | I27: 2
B28: Japon | C28: 0.45 | D28: 0.29 | E28: 0.8 | F28: 0.32 | G28: 0.9 | H28: 0.38 | I28: 1.1
B29: Emergents | C29: 0.35 | D29: 0.47 | E29: 1.2 | F29: 0.54 | G29: 1.4 | H29: 0.2775 | I29: 0.65
B32: Question 1 : Quelle est la performance du fonds international
B33: La performance d’un fonds investi doit être évaluée au regard des ses objectifs financiers.
B34: Le but fixé est de fournir un rendement au moins équivalent à celui du fonds passif répliqué.
B35: Tout surplus mesure la rémunération du risque supplémentaire pris :
B36: Soit dans la sélection des titres, soit dans le timing du gestionnaire, soit dans l’allocation géographique
B38: PF= Σ Wip Rip - Σ Wib Rib > 0
B40: Calcul de Σ Wip Rip | F40: Calcul de Σ Wib Rib
B41: Fonds P | C41: Alloc Stateg | D41: % Alloc Pays (Wip) | F41: Benchmark | G41: Alloc Stateg | H41: % Alloc Pays (Wib)
B42: 1 | C42: Europe | D42: 0.2 | F42: 1 | G42: Europe | H42: 0.2
B43: 2 | C43: Japon | D43: 0.4 | F43: 2 | G43: Japon | H43: 0.45
B44: 3 | C44: Emergents | D44: 0.4 | F44: 3 | G44: Emergents | H44: 0.35
B46: % Alloc classe Actif (Wip) | F46: % Alloc classe Actif (Wib)
B47: 0.25 | C47: 0.35 | D47: 0.4 | F47: 0.25 | G47: 0.35 | H47: 0.4
B48: Actif 1 (Ri) | C48: Actif 2 | D48: Actif 3 | F48: Actif 1 (Ri) | G48: Actif 2 | H48: Actif 3
B49: 0.2 | C49: 0.1 | D49: 0.3 | E49: Europe | F49: 0.2 | G49: 0.098 | H49: 0.29
B50: 0.29 | C50: 0.32 | D50: 0.38 | E50: Japon | F50: 0.29 | G50: 0.32 | H50: 0.38
B51: 0.44 | C51: 0.5 | D51: 0.25 | E51: Emergents | F51: 0.47 | G51: 0.54 | H51: 0.2775
A52: Rip | B52: =SUMPRODUCT(B49:B51,$D$42:$D$44) -> 0.332 | C52: =SUMPRODUCT(C49:C51,$D$42:$D$44) -> 0.348 | D52: 0.312 | E52: Rib | F52: =F49*H42+F50*H43+F51*H44 -> 0.335 | G52: =G49*H42+G50*H43+G51*H44 -> 0.3526 | H52: =H49*H42+H50*H43+H51*H44 -> 0.326125
A53: Wip Rip | B53: =B47*B52 -> 0.083 | C53: =C47*C52 -> 0.1218 | D53: 0.1248 | F53: =F47*F52 -> 0.08375 | G53: =G47*G52 -> 0.12341 | H53: =H47*H52 -> 0.13045
B54: Total perf | F54: Total perf
B55: =B53+C53+D53 -> 0.3296 | F55: =SUM(F53:H53) -> 0.33761
B58: Différence | C58: =B55-F55 -> -0.00801 | D58: Le gestionnaire n'arrive pas à battre la cible du portefeuille Benchmark ce qui ne correspond pas à l'objectif recherché
B61: Question 2 : Déterminer la part de performance de ce fonds en % imputable à son allocation géographique son timing et sa sélectivité.
B63: Décomposition du processus générateur de performance du fonds
B65: Etape 1 :Mesure performance allocation Actif
B66: La part de performance due à l’allocation d’actif est nulle.
B67: En effet le fonds international et le fonds passifs ont la même répartition entre les classes d’actif ( 1 à n)
B68: Allocation Actif : AA = Σ [ (Wip-Wib) * Σ (Winp *Rinb) ].
B69: Dans ce cas Wip-Wib =0 => AA = 0
B71: Etape 2 :Mesure performance allocation Pays
B72: Le fonds international est réparti en trois classes d’actifs
B73: Ces trois actifs sont répartis de façon inéquitable entre les différents pays
B74: l’Allocation Pays : AP = Σ [ Wip* Σ (Winp-Winb) *Rinb) ].
B76: i | C76: % Alloc CA Wip | D76: Wi1p-Wi1b | E76: Wi2p-Wi2b | F76: Wi3p-Wi3b | G76: (Wi1p-Wi1b)*Ri1b | H76: (Wi2p-Wi2b)*Ri1b | I76: (Wi3p-Wi3b)*Ri1b | K76: AA
B77: 1 | C77: =B47 -> 0.25 | D77: =D42-H42 -> 0 | E77: =D43-H43 -> -0.05 | F77: =D44-H44 -> 0.05 | G77: =D77*F49 -> 0 | H77: =E77*F50 -> -0.0145 | I77: =F77*F51 -> 0.0235 | J77: =G77+H77+I77 -> 0.009 | K77: =J77*C77 -> 0.00225
B78: 2 | C78: =C47 -> 0.35 | D78: =D77 -> 0 | E78: =E77 -> -0.05 | F78: 0.05 | G78: =D78*G49 -> 0 | H78: =E78*G50 -> -0.016 | I78: =F78*G51 -> 0.027 | J78: =G78+H78+I78 -> 0.011 | K78: =J78*C78 -> 0.00385
B79: 3 | C79: =H47 -> 0.4 | D79: =D78 -> 0 | E79: =E78 -> -0.05 | F79: =F78 -> 0.05 | G79: =D79*H49 -> 0 | H79: =E79*H50 -> -0.019 | I79: =F79*H51 -> 0.013875 | J79: -0.005125 | K79: -0.00205
J80: Différence | K80: =SUM(K77:K79) -> 0.00405
B82: Etape 2 :Mesure performance Sélectivité
B84: Le fonds international est réparti en trois classes d’actifs au rendement parfois sensiblement différents du fonds passif.
B85: La Sélectivité : S = Σ [ Wip* Σ Winp*(Rinp-Rinb) ].
B87: i | C87: % Alloc CA Wip | D87: Wi1p-Wi1b | E87: Wi2p-Wi2b | F87: Wi3p-Wi3b | G87: (Wi1p-Wi1b)*Ri1b | H87: (Wi2p-Wi2b)*Ri1b | I87: (Wi3p-Wi3b)*Ri1b | K87: AA
B88: 1 | C88: =C77 -> 0.25 | D88: =B49-F49 -> 0 | E88: =B50-F50 -> 0 | F88: =B51-F51 -> -0.03 | G88: =D88*$D$42 -> 0 | H88: =E88*$D$43 -> 0 | I88: =F88*$D$44 -> -0.012 | J88: =G88+H88+I88 -> -0.012 | K88: =J88*C88 -> -0.003
B89: 2 | C89: =C78 -> 0.35 | D89: =C49-G49 -> 0.002 | E89: =C50-G50 -> 0 | F89: =C51-G51 -> -0.04 | G89: =D89*$D$42 -> 0.0004 | H89: =E89*$D$43 -> 0 | I89: =F89*$D$44 -> -0.016 | J89: =G89+H89+I89 -> -0.0156 | K89: =J89*C89 -> -0.00546
B90: 3 | C90: 0.4 | D90: =D49-H49 -> 0.01 | E90: =D50-H50 -> 0 | F90: =D51-H51 -> -0.0275 | G90: 0.002 | H90: 0 | I90: -0.011 | J90: -0.009 | K90: -0.0036
J91: Différence | K91: =SUM(K88:K90) -> -0.01206
B93: Il ressort que le fonds actif international | J93: Contrôle | K93: =K80+K91 -> -0.00801
B94: 1/n’exploite aucune stratégie de timing
B95: 2/offre une sélection d’actif déficiente conduisant à une perte vs benchmark passif
B96: 3/ Offre une sélection internationale positive en augmentant la part des marchés émergent au détriment du marché japonais
B98: La Sélectivité : S = Σ [ Wib* Σ Winp*(Rinp-Rinb) ].
B100: i | C100: % Alloc CA Wib | D100: Wi1p-Wi1b | E100: Wi2p-Wi2b | F100: Wi3p-Wi3b | G100: (Wi1p-Wi1b)*Ri1b | H100: (Wi2p-Wi2b)*Ri1b | I100: (Wi3p-Wi3b)*Ri1b | K100: AA
B101: 1 | C101: =H42 -> 0.2 | D101: =D88 -> 0 | E101: =E88 -> 0 | F101: -0.03 | G101: =G88 -> 0 | H101: =H88 -> 0 | I101: -0.012 | J101: =G101+H101+I101 -> -0.012 | K101: =J101*C101 -> -0.0024
B102: 2 | C102: =H43 -> 0.45 | D102: =D89 -> 0.002 | E102: 0 | F102: -0.04 | G102: 0.0004 | H102: 0 | I102: -0.016 | J102: -0.0156 | K102: =J102*C102 -> -0.00702
B103: 3 | C103: 0.35 | D103: =D90 -> 0.01 | E103: 0 | F103: -0.0275 | G103: 0.002 | H103: 0 | I103: -0.011 | J103: -0.009 | K103: -0.00315
J104: Différence | K104: =SUM(K101:K103) -> -0.01257
B105: Interaction : I = Σ [ ( Wib-Wip) * Σ Winp*(Rinp-Rinb) ].
B106: i | C106: % Alloc CA Wib | D106: Wi1p-Wi1b | E106: Wi2p-Wi2b | F106: Wi3p-Wi3b | G106: (Wi1p-Wi1b)*Ri1b | H106: (Wi2p-Wi2b)*Ri1b | I106: (Wi3p-Wi3b)*Ri1b | K106: AA
B107: 1 | C107: =C101-C88 -> -0.05 | D107: =D101 -> 0 | E107: =E101 -> 0 | F107: -0.03 | G107: 0 | H107: 0 | I107: -0.012 | J107: =G107+H107+I107 -> -0.012 | K107: =J107*C107 -> 0.0006
B108: 2 | C108: =C102-C89 -> 0.1 | D108: =D102 -> 0.002 | E108: 0 | F108: -0.04 | G108: 0.0004 | H108: 0 | I108: -0.016 | J108: -0.0156 | K108: =J108*C108 -> -0.00156
B109: 3 | C109: -0.05 | D109: 0.01 | E109: 0 | F109: -0.0275 | G109: 0.002 | H109: 0 | I109: -0.011 | J109: -0.009 | K109: 0.00045
J110: Différence | K110: =SUM(K107:K109) -> -0.00051
B112: Question 3 : Décomposer la performance en gains dus à l'allocation pays et à la sélectivité
B113: Le portefeuille international a investi 5% d’actifs en plus en émergent et 5% d’actifs en moins en Japon
B114: 3.1/S’agit-il d’une bonne stratégie d’investissement de la part des gestionnaires ?
B115: 3.1/ Comparer le gain relatif total de cette stratégie
B117: Etape 1 : Calcul de la performance totale du fonds actif ( en excédent du benchmark) après investissement +5% en émergent et -5% en japon.
B120: Impact sur marché émergent +5% | E120: Fonds | G120: Impact sur marché émergent -5% | I120: benchmark
B122: % Classe Actif | C122: =B47 -> 0.25 | D122: =C47 -> 0.35 | E122: =D47 -> 0.4 | G122: % Classe Actif | H122: =F47 -> 0.25 | I122: =G47 -> 0.35 | J122: =H47 -> 0.4
B123: % Alloc Emergent | C123: =D44 -> 0.4 | D123: =C123 -> 0.4 | E123: =C123 -> 0.4 | G123: % Alloc Emergent | H123: =H44 -> 0.35 | I123: =H123 -> 0.35 | J123: =H123 -> 0.35
B124: Rip Emergent | C124: =B51 -> 0.44 | D124: =C51 -> 0.5 | E124: =D51 -> 0.25 | G124: Rip Emergent | H124: =F51 -> 0.47 | I124: =G51 -> 0.54 | J124: =H51 -> 0.2775
C125: =C122*C123*C124 -> 0.044 | D125: =D122*D123*D124 -> 0.07 | E125: 0.04 | H125: =H122*H123*H124 -> 0.041125 | I125: =I122*I123*I124 -> 0.06615 | J125: =J122*J123*J124 -> 0.03885
F126: Différence | G126: =SUM(C125:E125)-SUM(H125:J125) -> 0.007875 | H126: =C125-H125 -> 0.002875 | I126: =D125-I125 -> 0.00385 | J126: =E125-J125 -> 0.00115
B128: Impact sur marché Japon -5 % | E128: Fonds | G128: Impact sur marché Japon -5 % | I128: benchmark
B130: % Classe Actif | C130: =B47 -> 0.25 | D130: =C47 -> 0.35 | E130: =D47 -> 0.4 | G130: % Classe Actif | H130: =F47 -> 0.25 | I130: =G47 -> 0.35 | J130: =H47 -> 0.4
B131: % Alloc Japon | C131: =D43 -> 0.4 | D131: =C131 -> 0.4 | E131: =C131 -> 0.4 | G131: % Alloc Emergent | H131: =H43 -> 0.45 | I131: =H131 -> 0.45 | J131: =H131 -> 0.45
B132: Rip Japon | C132: =B50 -> 0.29 | D132: =C50 -> 0.32 | E132: =D50 -> 0.38 | G132: Rip Japon | H132: =F50 -> 0.29 | I132: =G50 -> 0.32 | J132: =H50 -> 0.38
C133: =C130*C131*C132 -> 0.029 | D133: =D130*D131*D132 -> 0.0448 | E133: =E130*E131*E132 -> 0.0608 | H133: =H130*H131*H132 -> 0.032625 | I133: =I130*I131*I132 -> 0.0504 | J133: =J130*J131*J132 -> 0.0684
F134: Différence | G134: =SUM(C133:E133)-SUM(H133:J133) -> -0.016825 | H134: =C133-H133 -> -0.003625 | I134: =D133-I133 -> -0.0056 | J134: -0.0076
B136: Impact sur marché Europe | E136: Fonds | G136: Impact sur marché Japon 0 % | I136: benchmark
B138: % Classe Actif | C138: =C130 -> 0.25 | D138: =D130 -> 0.35 | E138: 0.4 | G138: % Classe Actif | H138: =H130 -> 0.25 | I138: =I130 -> 0.35 | J138: 0.4
B139: % Alloc Europe | C139: 0.2 | D139: =C139 -> 0.2 | E139: =C139 -> 0.2 | G139: % Alloc Emergent | H139: 0.2 | I139: =H139 -> 0.2 | J139: =H139 -> 0.2
B140: Rip Europe | C140: =B49 -> 0.2 | D140: =C49 -> 0.1 | E140: =D49 -> 0.3 | G140: Rip Europe | H140: =F49 -> 0.2 | I140: =G49 -> 0.098 | J140: =H49 -> 0.29
C141: =C138*C139*C140 -> 0.01 | D141: =D138*D139*D140 -> 0.007 | E141: 0.024 | H141: =H138*H139*H140 -> 0.01 | I141: =I138*I139*I140 -> 0.00686 | J141: 0.0232
F142: Différence | G142: =SUM(C141:E141)-SUM(H141:J141) -> 0.00094 | H142: =C141-H141 -> 0 | I142: =D141-I141 -> 0.00014 | J142: =E141-J141 -> 0.0008
G143: =G126+G134+G142 -> -0.00801
B146: Perte de rendement | C146: =G126+G134 -> -0.00895
B147: Il n’apparait donc pas profitable d’échanger 5% de l’investissement japonais contre l’investissement émergent.
B148: =CONCATENATE("En effet l’opération engendre une perte de rendement de ", TEXT(C146,"0,0000%"),"par rapport au benchmark") -> En effet l’opération engendre une perte de rendement de -0,8950%par rapport au benchmark
B150: Réponse 3.1 : Allocation pays
B152: On peut calculer la surpondération des marchés émergents indépendamment de la sélectivité opéré au sein de ce marché.
B154: L’allocation de l’allocation pays au pays émergent prend la forme : AP = Wip*[ Σ (Winp-Winb) *Rinb) ]
B155: Calcul :
B156: Impact perf avec + 5% sur alloc marché emergent (vs benchmark) | H156: Impact perf avec - 5% sur alloc marché Japonais (vs benchmark)
B157: i | C157: % Alloc CA Wip | D157: Wi1p-Wi1b | E157: Rinb | F157: Surpondération | H157: i | I157: % Alloc CA Wip | J157: Wi1p-Wi1b | K157: Rinb | L157: Surpondération
B158: 1 | C158: =B47 -> 0.25 | D158: =$D$44-$H$44 -> 0.05 | E158: =F51 -> 0.47 | F158: =E158*C158*D158 -> 0.005875 | H158: 1 | I158: =B47 -> 0.25 | J158: =$D$43-$H$43 -> -0.05 | K158: =F50 -> 0.29 | L158: =K158*I158*J158 -> -0.003625
B159: 2 | C159: =C47 -> 0.35 | D159: =$D$44-$H$44 -> 0.05 | E159: =G51 -> 0.54 | F159: =E159*C159*D159 -> 0.00945 | H159: 2 | I159: =C47 -> 0.35 | J159: =$D$43-$H$43 -> -0.05 | K159: =G50 -> 0.32 | L159: =K159*I159*J159 -> -0.0056
B160: 3 | C160: =D47 -> 0.4 | D160: 0.05 | E160: =H51 -> 0.2775 | F160: 0.00555 | H160: 3 | I160: =D47 -> 0.4 | J160: =$D$43-$H$43 -> -0.05 | K160: =H50 -> 0.38 | L160: -0.0076
E161: Total | F161: =SUM(F158:F160) -> 0.020875 | K161: Total | L161: =SUM(L158:L160) -> -0.016825
B163: Ce gain de 2,8% doit être comparé à l'impact sur l'allocation de -5% sur le marché japonais qui a produit une perte de -1,6825%
B164: Différence | C164: =F161+L161 -> 0.00405
B165: Donc indépendamment de la sélectivité l'allocation pays a été profitable pour le fonds international
B168: Réponse 3.2 : Impact de la sélectivité
B170: On calcule l’impact de la sélectivité sur la performance du fonds international comme suit :
B171: La Sélectivité : S = Σ [Wip* Σ Xinp*(Rinp-Rinb) ].
B174: Impact Sélectivité des actifs sur alloc marché emergent (vs benchmark)
B175: i | C175: % Alloc CA Wip | D175: Wi1p-Wi1b | E175: Xinp | F175: Surpondération
B176: 1 | C176: =C158 -> 0.25 | D176: =B51-F51 -> -0.03 | E176: =D44 -> 0.4 | F176: =E176*C176*D176 -> -0.003
B177: 2 | C177: =C159 -> 0.35 | D177: =C51-G51 -> -0.04 | E177: =E176 -> 0.4 | F177: =E177*C177*D177 -> -0.0056
B178: 3 | C178: 0.4 | D178: =D51-H51 -> -0.0275 | E178: =E176 -> 0.4 | F178: =E178*C178*D178 -> -0.0044
E179: Total | F179: =SUM(F176:F178) -> -0.013
B182: Un investissement de 40% dans les marchés émergent entraine une perte de relative de sélectivité de 1.3%
B184: En conclusion augmenter la part émergente par rapport au Japon permet de profiter des mouvements dynamiques internationaux.
B185: Par contre cela induit une perte de sélectivité par les choix d’actifs dans les pays émergents qui sous-performent le benchmark.

Sheet GIPS TWR
B2: METHODE DE CALCUL DE PERFORMANCE
B4: Un fonds d’investissement possède l’historique de performance suivant pour les années 2014 et 2015
B6: Q1 : Calculer la performance enregistrée par le fonds pour les années 2014 et2015
B8: Q2 : Calculer la performance cumulative pour la période considérée
B10: Q3 : Calculer la performance annualisée pour la période considérée
B12: Mois | C12: Performance | D12: (1 +Rt) | F12: Q1: Application par la formule du rendement pondéré par le temps TWRR
B13: 2014-01-01 | C13: 0.0074 | D13: =1+C13 -> 1.0074
B14: =EDATE(B13,1) -> 2014-02-01 | C14: 0.0103 | D14: =1+C14 -> 1.0103 | F14: Twrr = (1 + Rt1)* (1 + Rt2)* (1 + Rt3)*...* (1 + Rtn)* - 1
B15: =EDATE(B14,1) -> 2014-03-01 | C15: 0.0619 | D15: 1.0619
B16: 2014-04-01 | C16: 0.058 | D16: 1.058 | H16: 2014 | I16: 2015
B17: 2014-05-01 | C17: 0.0259 | D17: 1.0259 | F17: =PRODUIT(1,Rt) - 1 | H17: =PRODUCT(D13:D24)-1 -> -0.007899173797 | I17: =PRODUCT(D25:D36)-1 -> 0.271283247 | J17: =_xlfn.FORMULATEXT(I17) -> =PRODUIT(D25:D36)-1
B18: 2014-06-01 | C18: 0.0007 | D18: 1.0007
B19: 2014-07-01 | C19: -0.0232 | D19: 0.9768
B20: 2014-08-01 | C20: -0.0586 | D20: 0.9414 | F20: Q2 : la performance cumulative s’obtient en appliquant la même formule sur l’ensemble de la période.
B21: 2014-09-01 | C21: -0.0044 | D21: 0.9956
B22: 2014-10-01 | C22: -0.0183 | D22: 0.9817 | H22: 2014/2015
B23: 2014-11-01 | C23: -0.0772 | D23: 0.9228 | F23: =PRODUIT(1,Rt) - 1 | H23: =PRODUCT(D13:D36)-1 -> 0.2612411597 | I23: =_xlfn.FORMULATEXT(H23) -> =PRODUIT(D13:D36)-1
B24: 2014-12-01 | C24: 0.019 | D24: 1.019
B25: 2015-01-01 | C25: -0.0103 | D25: 0.9897 | F25: On peut également écrire Twrr = (1 + R2014)* (1 + R2015)-1
B26: 2015-02-01 | C26: -0.0017 | D26: 0.9983
B27: 2015-03-01 | C27: -0.0053 | D27: 0.9947 | F27: PC= | G27: 2014 | H27: 2015 | I27: 2014/2015
B28: 2015-04-01 | C28: 0.0389 | D28: 1.0389 | G28: =H17 -> -0.007899173797 | H28: =I17 -> 0.271283247 | I28: =(1+G28)*(1+H28)-1 -> 0.2612411597
B29: 2015-05-01 | C29: 0.0521 | D29: 1.0521
B30: 2015-06-01 | C30: 0.0274 | D30: 1.0274 | F30: Q3: Pour obtenir le taux de rendement total sur deux périodes en termes annuels ( sur une période) nous pouvons appliquer la formule suivante :
B31: 2015-07-01 | C31: 0.0195 | D31: 1.0195
B32: 2015-08-01 | C32: -0.0034 | D32: 0.9966 | G32: R 1période = ( 1 + taux périodes)^1/2 - 1
B33: 2015-09-01 | C33: 0.0433 | D33: 1.0433
B34: 2015-10-01 | C34: 0.0272 | D34: 1.0272 | F34: PC annuel= | G34: =SQRT(1+H23)-1 -> 0.1230499364 | H34: =_xlfn.FORMULATEXT(G34) -> =RACINE(1+H23)-1
B35: 2015-11-01 | C35: 0.0057 | D35: 1.0057
B36: 2015-12-01 | C36: 0.0519 | D36: 1.0519

Sheet Attribution
A3: 2 classes | B3: Attribution de Performance
B5: W. Bench. | C5: W. Portf | D5: Perf Bench. | E5: Perf Portf | H5: Allocation | I5: Sélection | J5: Inter
A6: Classe 1 | B6: 0.2 | C6: 0.25 | D6: 0.04880884817 | E6: -0.05131670195 | H6: =(C6-B6)*(D6-$D$8) -> 0.006175266287 | I6: =B6*(E6-D6) -> -0.02002511002 | J6: =(C6-B6)*(E6-D6) -> -0.005006277506
A7: Classe 2 | B7: 0.8 | C7: 0.75 | D7: -0.105572809 | E7: 0.07238052948 | H7: =(C7-B7)*(D7-$D$8) -> 0.001543816572 | I7: =B7*(E7-D7) -> 0.1423626708 | J7: =(C7-B7)*(E7-D7) -> -0.008897666924
A8: Ensemble | B8: =SUM(B6:B7) -> 1 | C8: =SUM(C6:C7) -> 1 | D8: =SUM(B6:B7*D6:D7) -> -0.07469647757 | E8: =SUM(C6:C7*E6:E7) -> 0.04145622162 | H8: =SUM(H6:H7) -> 0.007719082859 | I8: =SUM(I6:I7) -> 0.1223375608 | J8: =SUM(J6:J7) -> -0.01390394443
D9: Alpha : | E9: =E8-D8 -> 0.1161526992 | I9: Vérif : | J9: =I8+H8+J8 -> 0.1161526992
B11: W. Bench. | C11: W. Portf | D11: Perf Bench. | E11: Perf Portf | H11: Allocation | I11: Sélection
A12: Classe 1 | B12: =B6*(1+D6)/(1+D8) -> 0.2266950947 | C12: =C6*(1+E6)/(1+E8) -> 0.2277299992 | D12: 0.04880884817 | E12: -0.05131670195 | H12: =(C12-B12)*(D12-$D$14) -> 0.0001235511358 | I12: =B12*(E12-D12) -> -0.02269797107 | J12: =(C12-B12)*(E12-D12) -> -0.0001036203832
A13: Classe 2 | B13: =B7*(1+D7)/(1+D8) -> 0.7733049053 | C13: =C7*(1+E7)/(1+E8) -> 0.7722700008 | D13: -0.105572809 | E13: 0.07238052948 | H13: =(C13-B13)*(D13-$D$14) -> 3.621913714e-05 | I13: =B13*(E13-D13) -> 0.1376121896 | J13: =(C13-B13)*(E13-D13) -> -0.0001841647121
A14: Ensemble | B14: =SUM(B12:B13) -> 1 | C14: =SUM(C12:C13) -> 1 | D14: =SUM(B12:B13*D12:D13) -> -0.07057524461 | E14: =SUM(C12:C13*E12:E13) -> 0.04421095906 | H14: =SUM(H12:H13) -> 0.0001597702729 | I14: =SUM(I12:I13) -> 0.1149142185 | J14: =SUM(J12:J13) -> -0.0002877850953
D15: Alpha : | E15: =E14-D14 -> 0.1147862037 | I15: Vérif : | J15: =I14+H14+J14 -> 0.1147862037
B17: Attribution de Performance
B19: Act Euro | C19: Act Japon | D19: Oblig Euro | E19: Monétaire | F19: somme | I19: Rp | J19: Bs
A20: Wp | B20: 0.35 | C20: 0.4 | D20: 0.15 | E20: 0.1 | F20: =SUM(B20:E20) -> 1 | I20: Rs | J20: Rb
A21: Wb | B21: 0.25 | C21: 0.3 | D21: 0.25 | E21: 0.2 | F21: =SUM(B21:E21) -> 1
A22: Rp | B22: 0.12 | C22: 0.14 | D22: 0.06 | E22: 0.07 | I22: =F25 -> 0.114 | J22: =F30 -> 0.11375
A23: Rb | B23: 0.125 | C23: 0.13 | D23: 0.08 | E23: 0.06 | I23: =F31 -> 0.101 | J23: =F26 -> 0.10225
A25: Portfolio Wp.Rp | B25: =B22*B20 -> 0.042 | C25: =C22*C20 -> 0.056 | D25: 0.009 | E25: 0.007 | F25: =SUMPRODUCT(B20:E20,B22:E22) -> 0.114 | G25: Rp | H25: =form(F25) -> 
A26: Benchmark Wb.Rb | B26: 0.03125 | C26: 0.039 | D26: 0.02 | E26: 0.012 | F26: =SUMPRODUCT(B21:E21,B23:E23) -> 0.10225 | G26: Rb | H26: =form(F26) -> 
B27: =B25-B26 -> 0.01075 | C27: 0.017 | D27: -0.011 | E27: -0.005 | F27: =F25-F26 -> 0.01175 | H27: =IF(F27>0,"sur-performance","sous-performance") -> sur-performance
A28: Rp-Rb | B28: =B22-B23 -> -0.005 | C28: =C22-C23 -> 0.01 | D28: =D22-D23 -> -0.02 | E28: =E22-E23 -> 0.01
A29: Wp-Wb | B29: =B20-B21 -> 0.1 | C29: =C20-C21 -> 0.1 | D29: =D20-D21 -> -0.1 | E29: =E20-E21 -> -0.1
A30: bs=Wp.Rb | B30: =B20*B23 -> 0.04375 | C30: =C20*C23 -> 0.052 | D30: =D20*D23 -> 0.012 | E30: =E20*E23 -> 0.006 | F30: =SUMPRODUCT(B20:E20,B23:E23) -> 0.11375 | G30: bs | H30: =form(F30) -> 
A31: rs=Wb.Rp | B31: =B21*B22 -> 0.03 | C31: =C21*C22 -> 0.042 | D31: =D21*D22 -> 0.015 | E31: =E21*E22 -> 0.014 | F31: =SUMPRODUCT(B21:E21,B22:E22) -> 0.101 | G31: rs | H31: =form(F31) -> 
A32: méthode arithmétique | B32: =B30-B31 -> 0.01375 | C32: =C30-C31 -> 0.01 | D32: -0.003 | E32: -0.008 | F32: 0.01275 | G32: bs-rs | H32: =form(F32) -> 
A33: Wb (Rp-Rb) | B33: =B28*B21 -> -0.00125 | C33: =C28*C21 -> 0.003 | D33: =D28*D21 -> -0.005 | E33: =E28*E21 -> 0.002 | F33: =SUM(B33:E33) -> -0.00125 | G33: SP | H33: sélection = rs-Rb | I33: =F31-F26 -> -0.00125
A34: (Wp-Wb) Rb | B34: =B29*B23 -> 0.0125 | C34: =C29*C23 -> 0.013 | D34: =D29*D23 -> -0.008 | E34: =E29*E23 -> -0.006 | F34: =SUM(B34:E34) -> 0.0115 | G34: AA | H34: allocation = bs-Rb | I34: =F30-F26 -> 0.0115
A35: (Wp-Wb) (Rp-Rb) | B35: =B28*B29 -> -0.0005 | C35: =C28*C29 -> 0.001 | D35: =D28*D29 -> 0.002 | E35: =E28*E29 -> -0.001 | F35: =SUM(B35:E35) -> 0.0015 | G35: X | H35: interaction
B36: =SUM(B33:B35) -> 0.01075 | C36: =SUM(C33:C35) -> 0.017 | D36: =SUM(D33:D35) -> -0.011 | E36: =SUM(E33:E35) -> -0.005 | F36: =SUM(F33:F35) -> 0.01175 | H36: =F27-F35 -> 0.01025
A37: Wp (Rp-Rb) | B37: =B20*B28 -> -0.00175 | C37: =C20*C28 -> 0.004 | D37: =D20*D28 -> -0.003 | E37: =E20*E28 -> 0.001 | F37: =SUM(B37:E37) -> 0.00025 | G37: SP* = SP+X
A38: (Wp-Wb) Rb | B38: =B34 -> 0.0125 | C38: =C34 -> 0.013 | D38: =D34 -> -0.008 | E38: =E34 -> -0.006 | F38: =F34 -> 0.0115 | G38: AA | H38: allocation
B39: =SUM(B37:B38) -> 0.01075 | C39: =SUM(C37:C38) -> 0.017 | D39: =SUM(D37:D38) -> -0.011 | E39: =SUM(E37:E38) -> -0.005 | F39: =SUM(F37:F38) -> 0.01175
A40: (Rp-Rb-bs+rs)/2 | B40: =(B31-B26+B25-B30)/2 -> -0.0015 | C40: =(C31-C26+C25-C30)/2 -> 0.0035 | D40: =(D31-D26+D25-D30)/2 -> -0.004 | E40: =(E31-E26+E25-E30)/2 -> 0.0015 | F40: =(F31-F26+F25-F30)/2 -> -0.0005 | G40: SP' | H40: =form(F40) -> 
A41: (Rp-Rb+bs-rs)/2 | B41: =(B30-B26+B25-B31)/2 -> 0.01225 | C41: =(C30-C26+C25-C31)/2 -> 0.0135 | D41: =(D30-D26+D25-D31)/2 -> -0.007 | E41: =(E30-E26+E25-E31)/2 -> -0.0065 | F41: =(F30-F26+F25-F31)/2 -> 0.01225 | G41: AA'
B42: =SUM(B40:B41) -> 0.01075 | C42: =SUM(C40:C41) -> 0.017 | D42: =SUM(D40:D41) -> -0.011 | E42: =SUM(E40:E41) -> -0.005 | F42: =SUM(F40:F41) -> 0.01175
A43: (Rp-Rb)/2-(bs-rs)/2 | B43: =(B27-B32)/2 -> -0.0015 | C43: =(C27-C32)/2 -> 0.0035 | D43: -0.004 | E43: 0.0015 | F43: -0.0005 | G43: SP' | H43: =form(F43) -> 
A44: (Rp-Rb)/2+(bs-rs)/2 | B44: =(B27+B32)/2 -> 0.01225 | C44: =(C27+C32)/2 -> 0.0135 | D44: -0.007 | E44: -0.0065 | F44: 0.01225 | G44: AA'
B45: =SUM(B43:B44) -> 0.01075 | C45: =SUM(C43:C44) -> 0.017 | D45: =SUM(D43:D44) -> -0.011 | E45: =SUM(E43:E44) -> -0.005 | F45: =SUM(F43:F44) -> 0.01175
A46: méthode géométrique
A47: 1+Rp | B47: =1+B22 -> 1.12 | C47: 1.14 | D47: 1.06 | E47: 1.07 | F47: =F25 -> 0.114
A48: 1+Rb | B48: 1.125 | C48: 1.13 | D48: 1.08 | E48: 1.06 | F48: =F26 -> 0.10225
F49: =(1+F47)/(1+F48)-1 -> 0.01066001361
A50: Rp-Rb | B50: =B47/B48-1 -> -0.004444444444 | C50: =C47/C48-1 -> 0.008849557522 | D50: =D47/D48-1 -> -0.01851851852 | E50: =E47/E48-1 -> 0.009433962264 | F50: =SUM(B50:E50) -> -0.004679443177
A51: Rb-b | B51: =B48/(1+$F$48) -> 1.020639601 | C51: =C48/(1+$F$48) -> 1.025175777 | D51: =D48/(1+$F$48) -> 0.9798140168 | E51: =E48/(1+$F$48) -> 0.9616693128 | F51: =SUM(B51:E51) -> 3.987298707
A53: AA | B53: =B29*(B51-1) -> 0.002063960082 | C53: =C29*(C51-1) -> 0.002517577682 | D53: =D29*(D51-1) -> 0.002018598322 | E53: =E29*(E51-1) -> 0.003833068723 | F53: =SUM(B53:E53) -> 0.01043320481
A54: SP | B54: =B20*B50*B51 -> -0.001587661601 | C54: =C20*C50*C51 -> 0.003628940803 | D54: =D20*D50*D51 -> -0.002721705602 | E54: =E20*E50*E51 -> 0.0009072352007 | F54: =SUM(B54:E54) -> 0.0002268088002
F55: =F53+F54 -> 0.01066001361
B57: Attribution de Performance
C59: UK | D59: JAPAN | E59: US | F59: TOTAL
B60: Wp | C60: 0.4 | D60: 0.3 | E60: 0.3 | F60: 1
B61: Wb | C61: 0.4 | D61: 0.2 | E61: 0.4 | F61: 1
B62: Rp | C62: 0.2 | D62: -0.05 | E62: 0.06
B63: Rb | C63: 0.1 | D63: -0.04 | E63: 0.08
A65: Portfolio | C65: =C62*C60 -> 0.08 | D65: -0.015 | E65: 0.018 | F65: =SUMPRODUCT(B60:E60,B62:E62) -> 0.083 | G65: Rp
A66: Benchmark | C66: 0.04 | D66: -0.008 | E66: 0.032 | F66: =SUMPRODUCT(B61:E61,B63:E63) -> 0.064 | G66: Rb
F67: =F65-F66 -> 0.019 | H67: =IF(F67>0,"sur-performance","sous-performance") -> sur-performance
A68: Rp-Rb | C68: =C62-C63 -> 0.1 | D68: =D62-D63 -> -0.01 | E68: =E62-E63 -> -0.02
A69: Wp-Wb | C69: =C60-C61 -> 0 | D69: =D60-D61 -> 0.1 | E69: =E60-E61 -> -0.1
A70: bs | C70: =C60*C63 -> 0.04 | D70: =D60*D63 -> -0.012 | E70: =E60*E63 -> 0.024 | F70: =SUMPRODUCT(B60:E60,B63:E63) -> 0.052 | G70: bs
A71: rs | C71: =C61*C62 -> 0.08 | D71: =D61*D62 -> -0.01 | E71: =E61*E62 -> 0.024 | F71: =SUMPRODUCT(B61:E61,B62:E62) -> 0.094 | G71: rs
A72: méthode arithmétique
A73: Wb (Rp-Rb) | C73: =C68*C61 -> 0.04 | D73: =D68*D61 -> -0.002 | E73: =E68*E61 -> -0.008 | F73: =SUM(B73:E73) -> 0.03 | G73: SP | H73: sélection
A74: (Wp-Wb) Rb | C74: =C69*C63 -> 0 | D74: =D69*D63 -> -0.004 | E74: =E69*E63 -> -0.008 | F74: =SUM(B74:E74) -> -0.012 | G74: AA | H74: allocation
A75: (Wp-Wb) (Rp-Rb) | C75: =C68*C69 -> 0 | D75: =D68*D69 -> -0.001 | E75: =E68*E69 -> 0.002 | F75: =SUM(B75:E75) -> 0.001 | G75: X | H75: interaction
C76: =SUM(C73:C75) -> 0.04 | D76: =SUM(D73:D75) -> -0.007 | E76: =SUM(E73:E75) -> -0.014 | F76: =SUM(F73:F75) -> 0.019 | H76: =F67-F75 -> 0.018
C77: =C60*C68 -> 0.04 | D77: =D60*D68 -> -0.003 | E77: =E60*E68 -> -0.006 | F77: =SUM(B77:E77) -> 0.031 | G77: SP* = SP+X
C78: =C74 -> 0 | D78: =D74 -> -0.004 | E78: =E74 -> -0.008 | F78: =F74 -> -0.012 | G78: AA | H78: allocation
C79: =SUM(C77:C78) -> 0.04 | D79: =SUM(D77:D78) -> -0.007 | E79: =SUM(E77:E78) -> -0.014 | F79: =SUM(F77:F78) -> 0.019
C80: =(C71-C66+C65-C70)/2 -> 0.04 | D80: =(D71-D66+D65-D70)/2 -> -0.0025 | E80: =(E71-E66+E65-E70)/2 -> -0.007 | F80: =(F71-F66+F65-F70)/2 -> 0.0305 | G80: SP'
C81: =(C70-C66+C65-C71)/2 -> 0 | D81: =(D70-D66+D65-D71)/2 -> -0.0045 | E81: =(E70-E66+E65-E71)/2 -> -0.007 | F81: =(F70-F66+F65-F71)/2 -> -0.0115 | G81: AA'
C82: =SUM(C80:C81) -> 0.04 | D82: =SUM(D80:D81) -> -0.007 | E82: =SUM(E80:E81) -> -0.014 | F82: =SUM(F80:F81) -> 0.019
A83: méthode géométrique
A84: 1+Rp | C84: =1+C62 -> 1.2 | D84: 0.95 | E84: 1.06 | F84: =F65 -> 0.083
A85: 1+Rb | C85: 1.1 | D85: 0.96 | E85: 1.08 | F85: =F66 -> 0.064
F86: =(1+F84)/(1+F85)-1 -> 0.01785714286
A87: Rp-Rb | C87: =C84/C85-1 -> 0.09090909091 | D87: =D84/D85-1 -> -0.01041666667 | E87: =E84/E85-1 -> -0.01851851852 | F87: =SUM(B87:E87) -> 0.06197390572
A88: Rb-b | C88: =C85/(1+$F$48) -> 0.9979587208 | D88: =D85/(1+$F$48) -> 0.8709457927 | E88: =E85/(1+$F$48) -> 0.9798140168 | F88: =SUM(B88:E88) -> 2.84871853
A90: AA | C90: =C69*(C88-1) -> 0 | D90: =D69*(D88-1) -> -0.01290542073 | E90: =E69*(E88-1) -> 0.002018598322 | F90: =SUM(B90:E90) -> -0.01088682241
A91: SP | C91: =C60*C87*C88 -> 0.03628940803 | D91: =D60*D87*D88 -> -0.002721705602 | E91: =E60*E87*E88 -> -0.005443411204 | F91: =SUM(B91:E91) -> 0.02812429122
F92: =F90+F91 -> 0.01723746881
A95: 3.04 | B95: Attribution d'une surperformance géométrique
A97: Portefeuille
B98: Poids moyen | C98: Poids relat | E98: Perf. | F98: Contrib. | I98: =A97 -> Portefeuille | J98: =B98 -> Poids moyen | K98: =E98 -> Perf.
A99: Actions | B99: 420 | C99: =B99/B101 -> 0.42 | E99: 0.2 | F99: =E99*C99 -> 0.084 | I99: =A99 -> Actions | J99: =B99 -> 420 | K99: =E99 -> 0.2
A100: Taux | B100: 580 | C100: =B100/B101 -> 0.58 | E100: 0.02 | F100: =E100*C100 -> 0.0116 | I100: =A100 -> Taux | J100: =B100 -> 580 | K100: =E100 -> 0.02
A101: Total | B101: =B99+B100 -> 1000 | C101: =C99+C100 -> 1 | F101: =F99+F100 -> 0.0956 | I101: =A101 -> Total | J101: =B101 -> 1000
A103: Benchmark
B104: Poids moyen | C104: Poids relat | E104: Perf. | F104: Contrib. | I104: =A103 -> Benchmark | J104: =B104 -> Poids moyen | K104: =E104 -> Perf.
A105: Actions | B105: 500 | C105: =B105/B107 -> 0.4166666667 | E105: 0.15 | F105: =C105*E105 -> 0.0625 | I105: =A105 -> Actions | J105: =B105 -> 500 | K105: =E105 -> 0.15
A106: Taux | B106: 700 | C106: =B106/B107 -> 0.5833333333 | E106: 0.01 | F106: =C106*E106 -> 0.005833333333 | I106: =A106 -> Taux | J106: =B106 -> 700 | K106: =E106 -> 0.01
A107: Ensemble | B107: =B105+B106 -> 1200 | C107: =C105+C106 -> 1 | F107: =F105+F106 -> 0.06833333333 | I107: =A107 -> Ensemble | J107: =B107 -> 1200
B110: Portefeuille | E110: Benchmark
B111: Poids | C111: Perf | E111: Poids | F111: Perf
A112: Actions | B112: =C99 -> 0.42 | C112: =E99 -> 0.2 | E112: =C105 -> 0.4166666667 | F112: =E105 -> 0.15
A113: Taux | B113: =C100 -> 0.58 | C113: =E100 -> 0.02 | E113: =C106 -> 0.5833333333 | F113: =E106 -> 0.01
A114: Total | B114: =C101 -> 1 | C114: =F101 -> 0.0956 | E114: 1 | F114: =F107 -> 0.06833333333
B116: Constats | D116: Attribution de l'alpha
B117: Pari actif | C117: Ecart perf | D117: Allocation | F117: Selection
A118: Actions | B118: -0.1025352113 | C118: =(1+C112)/(1+F112)-1 -> 0.04347826087 | D118: =(B112-E112)*(F112-$F$114)/(1+$F$114) -> 0.0002548101924 | F118: =B112*(C112-F112)/(1+$F$114) -> 0.01965678627
A119: Taux | B119: 0.1025352113 | C119: =(1+C113)/(1+F113)-1 -> 0.009900990099 | D119: =(B113-E113)*(F113-$F$114)/(1+$F$114) -> 0.0001820072803 | F119: =B113*(C113-F113)/(1+$F$114) -> 0.005429017161
A120: Total | B120: 0 | C120: =(1+C114)/(1+F114)-1 -> 0.0255226209 | D120: =D119+D118 -> 0.0004368174727 | E120: =E119+E118 -> 0 | F120: =F119+F118 -> 0.02508580343

Sheet AtributionPerf
C3: UK | D3: JAPAN | E3: US | F3: TOTAL
B4: Wpi | C4: 0.4 | D4: 0.3 | E4: 0.3 | F4: 1
B5: Wbi | C5: 0.4 | D5: 0.2 | E5: 0.4 | F5: 1
B6: Rpi | C6: 20 | D6: -5 | E6: 6 | G6: =SUMPRODUCT(C4:E4,C6:E6) -> 8.3 | H6: Rp
B7: Rbi | C7: 10 | D7: -4 | E7: 8 | G7: =SUMPRODUCT(C5:E5,C7:E7) -> 6.4 | H7: Rb
B8: Rbi-Rb | C8: =C7-$G$7 -> 3.6 | D8: =D7-$G$7 -> -10.4 | E8: 1.6 | G8: =G6-G7 -> 1.9
B9: Wp-Wb | C9: =C4-C5 -> 0 | D9: =D4-D5 -> 0.1 | E9: -0.1
B10: Rp-Rb | C10: =C6-C7 -> 10 | D10: =D6-D7 -> -1 | E10: -2
A13: ASSET ALLOCATION | B13: (Wp-Wb).Rbi | C13: =C9*C7 -> 0 | D13: =D9*D7 -> -0.4 | E13: =E9*E7 -> -0.8 | F13: =SUM(C13:E13) -> -1.2
A14: ASSET ALLOCATION | B14: (Wp-Wb).(Rbi-Rb) | C14: =C9*C8 -> 0 | D14: =D9*D8 -> -1.04 | E14: =E9*E8 -> -0.16 | F14: =SUM(C14:E14) -> -1.2
A15: SELECTION | B15: Wbi.(Rp-Rb) | C15: =C10*C5 -> 4 | D15: =D10*D5 -> -0.2 | E15: =E10*E5 -> -0.8 | F15: =SUM(C15:E15) -> 3
A16: INTERACTIVITE | B16: (Wp-Wb)(Rp-Rb) | C16: =C9*C10 -> 0 | D16: =D9*D10 -> -0.1 | E16: 0.2 | F16: =SUM(C16:E16) -> 0.1
C17: =SUM(C14:C16) -> 4 | D17: =SUM(D14:D16) -> -1.34 | E17: -0.76 | F17: =SUM(F14:F16) -> 1.9
C20: UK | D20: JAPAN | E20: US | F20: TOTAL
B21: Wpi | C21: 0.4 | D21: 0.4 | E21: 0.2 | F21: 1
B22: Wbi | C22: 0.35 | D22: 0.5 | E22: 0.15 | F22: 1
B23: Rpi | C23: 13 | D23: 6.75 | E23: 11 | G23: =SUMPRODUCT(C21:E21,C23:E23) -> 10.1 | H23: Rp
B24: Rbi | C24: 12 | D24: 7 | E24: 11 | G24: =SUMPRODUCT(C22:E22,C24:E24) -> 9.35 | H24: Rb
B25: Rbi-Rb | C25: =C24-$G$24 -> 2.65 | D25: =D24-$G$24 -> -2.35 | E25: 1.65 | G25: =G23-G24 -> 0.75
B26: Wp-Wb | C26: =C21-C22 -> 0.05 | D26: =D21-D22 -> -0.1 | E26: 0.05
B27: Rp-Rb | C27: =C23-C24 -> 1 | D27: =D23-D24 -> -0.25 | E27: 0
A30: ASSET ALLOCATION | B30: (Wp-Wb).Rbi | C30: =C26*C24 -> 0.6 | D30: =D26*D24 -> -0.7 | E30: =E26*E24 -> 0.55 | F30: =SUM(C30:E30) -> 0.45
A31: ASSET ALLOCATION | B31: (Wp-Wb).(Rbi-Rb) | C31: =C26*C25 -> 0.1325 | D31: =D26*D25 -> 0.235 | E31: =E26*E25 -> 0.0825 | F31: =SUM(C31:E31) -> 0.45
A32: SELECTION | B32: Wbi.(Rp-Rb) | C32: =C27*C22 -> 0.35 | D32: =D27*D22 -> -0.125 | E32: =E27*E22 -> 0 | F32: =SUM(C32:E32) -> 0.225
A33: INTERACTIVITE | B33: (Wp-Wb)(Rp-Rb) | C33: =C26*C27 -> 0.05 | D33: =D26*D27 -> 0.025 | E33: 0 | F33: =SUM(C33:E33) -> 0.075
C34: =SUM(C31:C33) -> 0.5325 | D34: =SUM(D31:D33) -> 0.135 | E34: 0.0825 | F34: =SUM(F31:F33) -> 0.75
C36: UK | D36: JAPAN | F36: TOTAL
B37: Wpi | C37: 0.25 | D37: 0.75 | F37: 1
B38: Wbi | C38: 0.2 | D38: 0.8 | F38: 1
B39: Rpi | C39: -5.13 | D39: 7.24 | G39: =SUMPRODUCT(C37:E37,C39:E39) -> 4.1475 | H39: Rp
B40: Rbi | C40: 4.9 | D40: -10.56 | G40: =SUMPRODUCT(C38:E38,C40:E40) -> -7.468 | H40: Rb
B41: Rbi-Rb | C41: =C40-G40 -> 12.368 | D41: =D40-G40 -> -3.092 | G41: =G39-G40 -> 11.6155
B42: Wp-Wb | C42: =C37-C38 -> 0.05 | D42: =D37-D38 -> -0.05
B43: Rp-Rb | C43: =C39-C40 -> -10.03 | D43: =D39-D40 -> 17.8
A46: ASSET ALLOCATION | B46: (Wp-Wb).Rbi | C46: =C42*C40 -> 0.245 | D46: =D42*D40 -> 0.528 | F46: =SUM(C46:E46) -> 0.773
A47: ASSET ALLOCATION | B47: (Wp-Wb).(Rbi-Rb) | C47: =C42*C41 -> 0.6184 | D47: =D42*D41 -> 0.1546 | F47: =SUM(C47:E47) -> 0.773
A48: SELECTION TITRE | B48: Wbi.(Rp-Rb) | C48: =C43*C38 -> -2.006 | D48: =D43*D38 -> 14.24 | F48: =SUM(C48:E48) -> 12.234
A49: INTERACTIVITE | B49: (Wp-Wb)(Rp-Rb) | C49: =C42*C43 -> -0.5015 | D49: =D42*D43 -> -0.89 | F49: =SUM(C49:E49) -> -1.3915
C50: =SUM(C47:C49) -> -1.8891 | D50: =SUM(D47:D49) -> 13.5046 | F50: =SUM(F47:F49) -> 11.6155
C52: UK | D52: JAPAN | E52: US | F52: TOTAL
B53: Wpi | C53: 0.3 | D53: 0.4 | E53: 0.3 | F53: 1
B54: Wbi | C54: 0.5 | D54: 0.25 | E54: 0.25 | F54: 1
B55: Rpi | C55: 15.75 | D55: 21.75 | E55: 28.25 | G55: =SUMPRODUCT(C53:E53,C55:E55) -> 21.9 | H55: Rp | I55: 0.1125 | J55: 0.1575
B56: Rbi | C56: 16.25 | D56: 20 | E56: 28 | G56: =SUMPRODUCT(C54:E54,C56:E56) -> 20.125 | H56: Rb | I56: 0.2175 | J56: 0.2175
B57: Rbi-Rb | C57: =C56-$G$56 -> -3.875 | D57: =D56-$G$56 -> -0.125 | E57: 7.875 | G57: =G55-G56 -> 1.775 | I57: 0.215 | J57: 0.2825
B58: Wp-Wb | C58: =C53-C54 -> -0.2 | D58: =D53-D54 -> 0.15 | E58: 0.05 | J58: Ri
B59: Rp-Rb | C59: =C55-C56 -> -0.5 | D59: =D55-D56 -> 1.75 | E59: 0.25 | I59: 0.1625
I60: 0.155 | J60: Rend My(Rib)
I61: 0.23 | J61: 0.1625
A62: ASSET ALLOCATION | B62: (Wp-Wb).Rbi | C62: =C58*C56 -> -3.25 | D62: =D58*D56 -> 3 | E62: =E58*E56 -> 1.4 | F62: =SUM(C62:E62) -> 1.15 | J62: 0.2
A63: ASSET ALLOCATION | B63: (Wp-Wb).(Rbi-Rb) | C63: =C58*C57 -> 0.775 | D63: =D58*D57 -> -0.01875 | E63: =E58*E57 -> 0.39375 | F63: =SUM(C63:E63) -> 1.15 | J63: 0.28
A64: SELECTION | B64: Wbi.(Rp-Rb) | C64: =C59*C54 -> -0.25 | D64: =D59*D54 -> 0.4375 | E64: =E59*E54 -> 0.0625 | F64: =SUM(C64:E64) -> 0.25
A65: INTERACTIVITE | B65: (Wp-Wb)(Rp-Rb) | C65: =C58*C59 -> 0.1 | D65: =D58*D59 -> 0.2625 | E65: 0.0125 | F65: =SUM(C65:E65) -> 0.375
C66: =SUM(C63:C65) -> 0.625 | D66: =SUM(D63:D65) -> 0.68125 | E66: 0.46875 | F66: =SUM(F63:F65) -> 1.775
B67: 1 | C67: =B67-$B$72 -> -2 | D67: =C67^4 -> 16 | E67: =C67*C67 -> 4
B68: 2 | C68: =B68-$B$72 -> -1 | D68: =C68^4 -> 1 | E68: =C68*C68 -> 1
B69: 3 | C69: 0 | D69: 0 | E69: 0
B70: 4 | C70: 1 | D70: 1 | E70: 1
B71: 5 | C71: 2 | D71: 16 | E71: 4
B72: =AVERAGE(B67:B71) -> 3 | D72: =SUM(D67:D71) -> 34 | E72: =SUM(E67:E71) -> 10
E73: =STDEV(B67:B71) -> 1.58113883 | F73: =STDEVP(B67:B71) -> 1.414213562 | G73: =E73/F73 -> 1.118033989
D74: =D72/E74/E74 -> 5.44 | E74: =E73*E73 -> 2.5 | F74: =F73*F73 -> 2 | G74: =E74/F74 -> 1.25
B75: =KURT(B67:B71) -> -1.2 | D75: =5*6/4/3/2 -> 1.25
D76: =3*4*4/3/2 -> 8
D77: =D74*D75-D76 -> -1.2
